{"text_format":"1","workbook":"xlsx","n_sheets":23,"sheets":["Cover Page","Facility Info","Operational Data","Operational Summary","Perf. Form 1","Energy Form 1","Permit Compliance","Improvements","Public Liasion","CO2 N2O","Residues","Water","Air (periodic)","Air (CEMS)","HCl","SO2","NOx","TOC","Particulates","CO 0.5 hourly","CO 95% 10 min","NH3","Template changes log"],"not_rendered":{"charts":8,"images":3,"macros":1,"external_links":0,"defined_names":23,"comments":0,"pivot_tables":0},"unopened":[],"bounds":{"document_bytes":16777216,"sheet_cells":100000,"rows_first":2000,"rows_last":500,"rows_between":2000,"halvings":0,"cell_chars":16384,"cell_head_chars":4096},"cells_cut":0,"cells_raw":0,"read":"whole","date_system":"1900"}

{"sheet":"Cover Page","index":0,"n_rows":53,"n_cols":11,"rows_kept":53,"cut":false,"hidden":false,"merged":[[48,2,48,3],[48,6,48,8],[52,2,52,3],[36,1,36,8],[40,2,40,8],[42,2,42,4],[44,2,44,4],[46,2,46,3],[46,6,46,8],[13,10,18,12],[34,1,34,8],[0,3,5,6],[7,1,23,8],[28,1,28,8],[30,1,30,8],[32,1,32,8]]}
[null,null,null,"Add company logo"]
[null,null,null,null,null,null,null,null,null,null,"Template version 25.1a (for incinerators) - 27/11/25"]
[]
[null,null,null,null,null,null,null,null,null,null,"Note that there is another version of this template available for co-incinerators"]
[]
[]
[]
[null,"Add photo"]
[]
[]
[]
[]
[null,null,null,null,null,null,null,null,null,null,"Notes:"]
[null,null,null,null,null,null,null,null,null,null,"This template may require adjustments by individual operators to meet specific reporting requirements as defined in the site Permit(s)"]
[]
[]
[]
[]
[]
[]
[]
[]
[]
[]
[]
[]
[]
[]
[null,"Annual Performance Report 2025"]
[]
[null,"Permit EPR/NP3738SY"]
[]
[null,"SELCHP"]
[]
[null,"South East London Combined Heat and Power"]
[]
[null,"Veolia SELCHP Ltd"]
[]
[null,"Year:",2025]
[]
[null,"Address:","The Kennels Site, Landmann Way, Lewisham"]
[]
[null,"Tel: ","02035676100"]
[]
[null,"Email: ","enquiries@selchp.com"]
[]
[null,"Prepared by:","Shehzad Lokhandwala",null,null,"Position:","Environmental Engineer (ERF)"]
[]
[null,"Approved by:","Husain Suwasrawala",null,null,"Position:","General Manager"]
[]
[null,"Version:",1]
[]
[null,"Issue Date:","2026-01-28"]

{"sheet":"Facility Info","index":1,"n_rows":22,"n_cols":11,"rows_kept":22,"cut":false,"hidden":false,"merged":[[4,0,17,8],[21,0,53,8],[4,10,13,13],[21,10,30,13]]}
[{"$f":"+'Cover Page'!$B$29","v":"Annual Performance Report 2025"},null,null,null,{"$f":"+'Cover Page'!$B$33","v":"SELCHP"}]
[]
["Plant Description and Design",null,null,null,null,null,null,null,null,null,"Notes:"]
[]
["In 1986, faced with the increasing scarcity and environmental problems of landfill, the London Boroughs of Lewisham, Southwark and Greenwich came together to search for a realistic alternative. In 1988, they formed a Consortium - South East London Combined Heat and Power - from which SELCHP, Energy Recovery Facility (ERF), now takes its name. The facility recovers heat energy from the combustion of non-hazardous waste to raise steam, to generate electricity from a steam turbine which is then exported to the National Grid. Residual steam from the process is used to heat a district heating network, which supplies heat for domestic heating and hot water to local residents. Strict environmental controls and proven operating experience ensure that SELCHP remains consistently compliant with environmental permitting regulations.                                                                                                                                                                                                                                                         \n                                                                                                                                                                                                                                                                                                                                                                                                Technical details of the plant:\nTwo boilers supply steam to one common turbine\nMaximum Permitted Refuse throughput – 464,000 tonnes per annum (29 tonnes per hour per boiler)\nNumber of tipping bays – 11\nSteam output – 38 tonnes of steam per hour at 395°C and 46 bar\nFlue gas treatment – Selective Non-Catalytic Reduction (SNCR) DeNOx, activated carbon injection, semi-wet lime scrubber and high performance bag filters system, discharging into a 100 metre high chimney\nElectrical Generation Capacity – 35MWe and a District Heating potential capacity of 40MWth",null,null,null,null,null,null,null,null,null,"Include summary of plant design, design capacity, no. of combustion lines, electrical and heat capacity and any other general information that describes the facility, its location and purpose "]
[]
[]
[]
[]
[]
[]
[]
[]
[]
[]
[]
[]
[]
[]
["Summary of Operational Processes and Procedures"]
[]
["The main purpose of the activity at SELCHP is to burn non-hazardous municipal waste and to recover energy in the form of steam for both; the export of heat via a district heating network and as electricity for export to the national grid. \nSELCHP is a consortium of Local Authorities and private enterprise that operates a 464,000 tonne per year, mass burn, municipal waste incinerator in Deptford in the London Borough of Lewisham.\nWaste is delivered both; directly to site by refuse collection vehicles and various other waste vehicles. Waste delivered to site is discharged into the waste storage bunker. Oversized and unsuitable wastes are rejected and removed. The waste is then charged into one of two furnaces by dedicated grab cranes. Hydraulic ram feeders control the charging rate of the waste to the furnace grate. Waste is burnt on a reverse acting stoker grate with combustion air supplied in a controlled manner to ensure efficient combustion. The production on Oxides of Nitrogen (NOx) by combustion is mitigated by the injection of ammonia solution into the furnace by a process of Selective Non-Catalytic Reduction (SNCR). Bottom ash from the grate is quenched in a water bath to prevent the release of dust and provide a gas seal, at the ash discharger outlet. Ferrous metal is recovered from the ash by a drum magnet. Residual ash is recovered and sent to a recycling facility in Greenwich, London.\nThe hot gases from the combustion process are passed through a boiler to raise steam, which is then forwarded to a steam turbine to generate up to 32 MW of electricity for export to the national grid. Excess steam, of too low an enthalpy to generate electricity, is taken off the turbine, allowing for the export of heat via the District Heating network to local residents. This heat would otherwise be lost to atmosphere,as waste heat, via the Air Cooled Condenser (ACC). \nExhaust gasses from the boiler are sent to the flue gas treatment plant. Firstly activated carbon is injected to adsorb mercury, heavy metals, dioxins and dioxin like compounds. Secondly, a semi-dry lime scrubbing plant removes acid gasses, predominantly hydrogen chloride (HCl) and sulphur dioxide (SO2). Lastly, the flue gases pass through a series of bad filters to control particulate emissions. The cleaned gasses are discharged from a 100 meter, twin flue (one for each furnace) chimney.     \nSELCHP operates an Environmental Management system accredited to ISO 14001.\nThere are no European sites within 10 km. Air dispersion modeling has established that the site has minimal impact on sites of special scientific interest (SSSI) within that radius. All emissions from the plant have been modelled, demonstrating that it is unlikely to have a significant impact on local air quality, due to it urban setting. \nThere are no releases to controlled waters as part of the process. Process effluents are reused within the process. Residual effluents are released to sewer as trade effluent.\nA Household, commercial and industrial waste transfer station may also be operated within the permit boundary, under conditions set out in ‘Standard Rules Permit SR2008No1’ when required.",null,null,null,null,null,null,null,null,null,"Include summary of key processes and procedures such as (but not limited to); waste reception, control rooms, grate, bed and boiler, energy & heat  generation, cooling systems, residue management, emission controls, health and safety systems, maintenance"]

{"sheet":"Operational Data","index":2,"n_rows":65,"n_cols":10,"rows_kept":65,"cut":false,"hidden":false,"merged":[[4,9,23,9],[25,9,29,9],[53,0,57,0],[34,1,39,1],[3,1,3,2],[10,1,22,1],[26,1,28,1],[7,2,7,3]]}
[{"$f":"+'Cover Page'!$B$29","v":"Annual Performance Report 2025"},null,null,null,{"$f":"+'Cover Page'!$B$33","v":"SELCHP"}]
[]
["Operational Data"]
["Plant Size:",464000,null,"tonnes pa",null,null,null,null,null,"Notes:"]
["Nominal net thermal input:",30,"MWth",null,null,null,null,null,null,"* Export capacity = nominal generation capacity at the generator terminals minus nominal parasitic load.\n\n** CHP and district heating plants only - put N/A if no heat export.\n\n***  Combusted tonnage = tonnes delivered in period + (tonnes in bunker at start of period – tonnes in bunker at end of period), or equivalent calculation depending on plant type\n\n**** Availability Definition: The availability of a line is to be calculated by the number of hours the line reported Continuously Monitored emission levels to the Regulator through the calendar year divided by the total number of hours in that year. \n\nThe overall plant availability is calculated as the mean of all lines in the plant. For clarity this includes periods of abnormal operation.  \n\nRationale: The primary function of an Energy from Waste facility is the disposal of waste. It follows therefore that the availability of a plant is determined by the period of time a facility spends undertaking this activity.\n\n*****NCV of waste: This should be completed for all plants which have a boiler. Calculate using total thermal power produced by boiler/boiler efficiency, or other suitable calculation. \n"]
["Nominal electrical export capacity*:",30,"MWe"]
["Nominal heat export capacity**:",40,"MWth"]
["No. of combustion lines:",2,"No. of steam turbines:",null,1]
[]
["Waste types received","Unit","Q1","Q2","Q3","Q4","Year Total","%"]
["Household / Local Authority","tonnes",99582.22,97148.7,84563.1,103340.94,{"$f":"SUM(C11:F11)","v":384634.96},{"$f":"IF(G11>0,G11/$G$21,\"-\")","v":0.91277155570642055}]
["Commercial & Industrial ",null,6.5,8.2799999999999994,3.52,4.24,{"$f":"SUM(C12:F12)","v":22.54},5.3489341857075907E-5]
["Hazardous ",null,"-","-","-","-",0,"-"]
["Clinical",null,23.46,23.12,19.98,26.4,92.960000000000008,2.2060200616831309E-4]
["Waste wood (biomass) ",null,"-","-","-","-",0,"-"]
["Refuse Derived Fuel (incl. SRF) - H'hold/LA",null,9582.8799999999992,9046.16,6449.56,11563.3,{"$f":"SUM(C16:F16)","v":36641.9},8.695435294555412E-2]
["Refuse Derived Fuel (incl. SRF) - C&I",null,"-","-","-","-",0,"-"]
["Other [Please specify]",null,"-","-","-","-",0,"-"]
["Other [Please specify]",null,"-","-","-","-",0,"-"]
["Other [Please specify]",null,"-","-","-","-",0,"-"]
["Total waste received",null,{"$f":"SUM(C11:C20)","v":109195.06000000001},{"$f":"SUM(D11:D20)","v":106226.26},{"$f":"SUM(E11:E20)","v":91036.160000000003},{"$f":"SUM(F11:F20)","v":114934.88},421392.36]
["Rejected Waste ",null,"-","-","-","-",{"$f":"SUM(C22:F22)","v":0},{"$f":"IF(G22>0,G22/$G$21,\"-\")","v":"-"}]
["Unprocessed waste transferred out",null,"-",2.54,"-","-",{"$f":"SUM(C23:F23)","v":2.54},{"$f":"IF(G23>0,G23/$G$21,\"-\")","v":6.0276365712942689E-6}]
["Total waste combusted ***",null,108373.16,106249.7,88823.039999999994,116444.5,{"$f":"SUM(C24:F24)","v":419890.39999999997}]
[]
["Energy Usage / Export","Unit","Q1","Q2","Q3","Q4","Year Total","KWh/te",null,"Password for protected cells\nA password has been set to prevent accidental  editing of cells with formulae. \nIf you still need to make an edit for some reason then the password = 1234"]
["Power generated at generator terminals","MWh",68582.3,69461.600000000006,56441.3,73328.3,{"$f":"SUM(C27:F27)","v":267813.5},{"$f":"IF(G27>0,G27*1000/$G$24,\"-\")","v":637.81763050548432}]
["Power exported to grid and other external user(s)",null,60677.47,61019.27,49658.42,65671.360000000001,{"$f":"SUM(C28:F28)","v":237026.51999999996},{"$f":"IF(G28>0,G28*1000/$G$24,\"-\")","v":564.49616376082895}]
["Power imported",null,0.01,"-",464.08,"-",464.09,{"$f":"IF(G29>0,G29*1000/$G$24,\"-\")","v":1.1052646119082505}]
["Indicative parasitic load","%",{"$f":"IF(C27>0,(C27-C28)/C27,\"-\")","v":0.11526049724199978},{"$f":"IF(D27>0,(D27-D28)/D27,\"-\")","v":0.12153952687528086},0.12017582869281898,0.10441998518989261,{"$f":"IF(G27>0,1-G28/(G27+G29),\"-\")","v":0.11648781398401586}]
["Thermal Energy Exported **",null,15615.21,9860.09,1562.1,7684.4,{"$f":"SUM(C31:F31)","v":34721.799999999996},{"$f":"IF(G31>0,G31*1000/$G$24,\"-\")","v":82.692531193854379}]
["R1 value (if applicable)","R1","-","-","-","-",0.69]
[]
["Waste Disposal & Recovery","Unit","Q1","Q2","Q3","Q4","Year Total","% inputs"]
["APC Residues - produced","tonnes",2991.36,2790.29,2267.6,2782.04,{"$f":"SUM(C35:F35)","v":10831.29},{"$f":"IF(G35>0,G35/$G$24,\"-\")","v":2.5795517115895009E-2}]
["IBA - produced",null,18367.560000000001,19897.18,15629.32,19994,73888.06,{"$f":"IF(G36>0,G36/$G$24,\"-\")","v":0.1759698721380627}]
["Metals recycling",null,2162.14,1910.76,1297.3599999999999,2034,{"$f":"SUM(C37:F37)","v":7404.2599999999993},1.7633792056212762E-2]
["Other",null,0,0,0,0,{"$f":"SUM(C38:F38)","v":0},"-"]
["Other",null,0,0,0,0,0,"-"]
["Other",null,0,0,0,0,0,"-"]
[]
["Raw Material Usage","Unit","Q1","Q2","Q3","Q4","Year Total","Qty./te"]
["Mains Water","ltrs",31395500,63349700,78261000,39169000,{"$f":"SUM(C43:F43)","v":212175200},{"$f":"IF(G43>0,G43/$G$24,\"-\")","v":505.31090970405614}]
["Other Water","ltrs","-","-","-","-",0,{"$f":"IF(G44>0,G44/$G$24,\"-\")","v":"-"}]
["Ammonia","kgs",402910,393590,306420,455640,1558560,3.7118257526249709]
["Urea","kgs","-",null,"-","-",{"$f":"SUM(C46:F46)","v":0},"-"]
["Activated Carbon","kgs",34350,38940,32370,37330,142990,0.34054124600133751]
["Lime / hydrated lime","kgs",1058120,944500,679570,901790,{"$f":"SUM(C48:F48)","v":3583980},8.5355130767457421]
["Fuel oil","ltrs",108404,77100,190900,29600,406004,0.96692851277380965]
["Gas","m3","-","-","-","-",0,"-"]
["Other",null,"-","-","-","-",0,"-"]
[]
["Summary ","Line/Unit","Q1","Q2","Q3","Q4","Year Total",null,"Hrs in year "]
["Availability of waste combustion by line, hrs ****",1,2048.4499999999998,2130.0500000000002,1704.55,2207.5500000000002,{"$f":"SUM(C54:F54)","v":8090.6},{"$f":"+G54/$I$54","v":0.92358447488584483},8760,"Change this figure to 8784 in a leap year"]
[null,2,2059.3000000000002,2016.53,1719.35,2184.23,7979.41,{"$f":"+G55/$I$54","v":0.91089155251141551}]
[null,3,"-","-","-","-",0,0]
[null,4,"-","-","-","-",0,0]
[null,5,"-","-","-","-",{"$f":"SUM(C58:F58)","v":0},0]
["Hours of turbine operations, hrs",1,2160,2184,1785.32,2207.62,8336.9399999999987,0.95170547945205464]
["Hours of turbine operations, hrs",2,"-","-","-","-",0,0]
["Hours of heat / steam export**","hours","-","-","-","-",0,{"$f":"IF(B61>0,G60/I54,\"n/a\")","v":0}]
["Net calorific value of waste*****","MJ/kg",9.4169999999999998,9.6620000000000008,9.6120000000000001,9.6229999999999993,{"$f":"AVERAGE(C62:F62)","v":9.5785}]
["Abnormal operation events","qty.","-","-","-","-",0,{"$f":"IF(G63>0,\"yes\",\"no\")","v":"no"}]
["Abnormal operation duration","hours","-","-","-","-",0,{"$f":"+(G64)/I54","v":0}]
["Permit Breaches","qty.","-","-","-","-",0,{"$f":"IF(G65>0,\"yes\",\"no\")","v":"no"}]

{"sheet":"Operational Summary","index":3,"n_rows":50,"n_cols":11,"rows_kept":50,"cut":false,"hidden":false,"merged":[[29,10,42,13],[4,0,26,8],[4,10,13,13],[28,1,28,8],[29,2,29,8],[30,2,30,8],[31,2,31,8],[32,2,32,8],[33,2,33,8],[34,2,34,8],[35,2,35,8],[36,2,36,8],[37,2,37,8],[38,2,38,8],[44,2,44,8],[39,2,39,8],[40,2,40,8],[43,2,43,8],[42,2,42,8],[41,2,41,8],[45,2,45,8],[46,2,46,8],[47,2,47,8],[48,2,48,8],[49,2,49,8]]}
[{"$f":"+'Cover Page'!$B$29","v":"Annual Performance Report 2025"},null,null,null,{"$f":"+'Cover Page'!$B$33","v":"SELCHP"}]
[]
["Summary of Plant Operations and Maintenance during the reporting year",null,null,null,null,null,null,null,null,null,"Notes:"]
[]
["Overall plant availability for 2025 was 91.72%, a marginal decrease compared to 2024. This was due to ongoing boiler grate breakdowns as a direct consequence of NOx canister explosions in the waste.\nBoiler 1: In addition to planned outage in July-August, the boiler suffered multiple breakdowns in January,May, August, September due to NOx cannister explosions. \n\nBoiler 2:  In addition to planned outage in July-August, the boiler suffered multiple breakdowns in January, March,April, May, June and July due to NOx cannister explosions.\n\nThe annual outage ran from the 21/07/25 to the 10/08/2025 for boiler 1, from the 27/07/25 to the 14/08/2025 for boiler 2 and from 26/07/25 to 10/08/25 for turbine/generator.  \n",null,null,null,null,null,null,null,null,null,"Include summary of key operational and/or maintenance activity undertaken in the year, such as any major component upgrades and/or replacements "]
[]
[]
[]
[]
[]
[]
[]
[]
[]
[]
[]
[]
[]
[]
[]
[]
[]
[]
[]
[]
[]
[]
[]
[{"$f":"+'Cover Page'!C39","v":2025},"Plant shut-downs"]
["Start date","End date","Reason for shut-down",null,null,null,null,null,null,null,"Provide a very brief reason for plant shut-down e.g. \"Shut-down prior to major outage\"; \"Emergency shut-down due to boiler tube leak\". All emergency shut-downs must be listed (irrespective of whether or not they were required to be reported to the EA). \n\nThere is no need to include periods of hot-standby here (e.g. to clear feed chute hopper blockages).\n\nFor clinical waste incinerators which require regular shut-downs for boiler cleaning, there is no need to record these here (only those prior to major outages, and emergency shut-downs). "]
["2025-01-10","2025-01-10","ID fan trip- Line 1"]
["2025-01-13","2025-01-15","shut down for grate repair work- Line 2"]
["2025-01-19","2025-01-21","shut down for grate repair work- Line 1"]
["2025-01-27","2025-01-27","shut down for grate repair work- Line 1"]
["2025-02-23","2025-02-25","shut down for grate repair work- Line 1"]
["2025-02-07","2025-02-07","shut down due to islanding UKPN issue- Line 2"]
["2025-03-17","2025-03-19","shut down due to tube leak and grate repair work- Line 2"]
["2025-03-20","2025-03-20","shut down due to feeder issue- Line 1"]
["2025-04-14","2025-04-17","shut down for grate and burner repair work- Line 2"]
["2025-05-01","2025-05-03","shut down for grate repair work- Line 1"]
["2025-05-22","2025-05-24","shut down for grate repair work- Line 2"]
["2025-06-17","2025-06-17","boiler trip due to high drum pressure- Line 1"]
["2025-06-08","2025-06-10","shut down for grate repair work- Line 2"]
["2025-07-09","2025-07-11","shut down for grate repair work- Line 1"]
["2025-07-21","2025-08-10","Planned shut down outage and delay in startup- Line 1"]
["2025-07-23","2025-07-25","shut down for grate and burner repair work- Line 2"]
["2025-07-27","2025-08-14","Planned shut down outage- Line 2"]
["2025-08-11","2025-08-11","shut down due to feeder ram replacement work- Line 1"]
["2025-08-30","2025-08-30","shut down due to feeder ram replacement work- Line 1"]
["2025-12-22","2025-12-22","shutdown due to Comms issue lossing various Boiler and grate controls- Line 2"]

{"sheet":"Perf. Form 1","index":4,"n_rows":54,"n_cols":10,"rows_kept":54,"cut":false,"hidden":false,"merged":[[47,0,47,1],[49,0,49,9],[50,0,51,9],[38,0,38,9],[39,0,40,9],[43,0,43,1],[43,2,43,9],[45,0,45,1],[46,0,46,1],[36,0,36,3],[36,4,36,5],[36,7,36,8],[37,0,37,3],[37,4,37,5],[37,7,37,8],[34,0,34,3],[34,4,34,5],[34,7,34,8],[35,0,35,3],[35,4,35,5],[35,7,35,8],[31,0,31,3],[31,7,31,8],[32,0,32,3],[32,4,32,5],[32,7,32,8],[33,0,33,3],[33,4,33,5],[33,7,33,8],[23,0,23,3],[23,4,23,5],[23,6,23,7],[23,8,23,9],[25,0,25,9],[26,0,28,9],[21,0,21,1],[21,2,21,3],[21,4,21,5],[21,6,21,7],[21,8,21,9],[22,0,22,3],[22,4,22,5],[22,6,22,7],[22,8,22,9],[19,0,19,1],[19,2,19,3],[19,4,19,5],[19,6,19,7],[19,8,19,9],[20,0,20,1],[20,2,20,3],[20,4,20,5],[20,6,20,7],[20,8,20,9],[17,0,17,1],[17,2,17,3],[17,4,17,5],[17,6,17,7],[17,8,17,9],[18,0,18,1],[18,2,18,3],[18,4,18,5],[18,6,18,7],[18,8,18,9],[15,0,15,1],[15,2,15,3],[15,4,15,5],[15,6,15,7],[15,8,15,9],[16,0,16,9],[13,0,13,1],[13,2,13,3],[13,4,13,5],[13,6,13,7],[13,8,13,9],[14,0,14,3],[14,4,14,5],[14,6,14,7],[14,8,14,9],[11,0,11,1],[11,2,11,3],[11,4,11,5],[11,6,11,7],[11,8,11,9],[12,0,12,1],[12,2,12,3],[12,4,12,5],[12,6,12,7],[12,8,12,9],[9,0,9,9],[10,0,10,1],[10,2,10,3],[10,4,10,5],[10,6,10,7],[10,8,10,9],[2,0,2,4],[2,6,2,8],[3,1,3,4],[5,3,5,4],[5,6,5,7],[8,0,8,1],[8,2,8,3],[8,4,8,5],[8,6,8,7],[8,8,8,9]]}
[{"$f":"+'Cover Page'!C39","v":2025}," Annual Reporting Performance Form 1"]
[]
[{"$f":"+'Cover Page'!B31","v":"Permit EPR/NP3738SY"},null,null,null,null,"Operator: ",{"$f":"+'Cover Page'!B37","v":"Veolia SELCHP Ltd"}]
["Facility:",{"$f":"+'Cover Page'!B33:I33","v":"SELCHP"},null,null,null,"Form:","Performance 1"]
[]
["Reporting  Period from: ",null,null,"2025-01-01",null,"to:","2025-12-31"]
[]
[{"$f":"+A1","v":2025},"Annual Reporting of Waste Disposal and Recovery"]
["Waste Description",null,"Disposal Route(s)",null,"Disposal Tonnes",null,"Recovery Tonnes",null,"% / tonne of waste incinerated"]
["1) Hazardous Wastes"]
["APC Residues",null,"D9",null,10831.29,null,0,null,{"$f":"IF((E11+G11)>0,(E11+G11)/'Operational Data'!$G$24, \"-\")","v":2.5795517115895009E-2}]
["IBA",null,null,null,null,null,null,null,{"$f":"IF((E12+G12)>0,(E12+G12)/'Operational Data'!$G$24, \"-\")","v":"-"}]
[null,null,null,null,null,null,null,null,{"$f":"IF((E13+G13)>0,(E13+G13)/'Operational Data'!$G$24, \"-\")","v":"-"}]
[null,null,null,null,null,null,null,null,{"$f":"IF((E14+G14)>0,(E14+G14)/'Operational Data'!$G$24, \"-\")","v":"-"}]
["Total Hazardous Waste",null,null,null,{"$f":"SUM(E11:F14)","v":10831.29},null,{"$f":"SUM(G11:H14)","v":0},null,{"$f":"IF((E15+G15)>0,(E15+G15)/'Operational Data'!$G$24, \"-\")","v":2.5795517115895009E-2}]
[]
["2) Non-Hazardous Wastes"]
["IBA",null,"R5",null,null,null,73888.06,null,{"$f":"IF((E18+G18)>0,(E18+G18)/'Operational Data'!$G$24, \"-\")","v":0.1759698721380627}]
["Ferrous Metal",null,"R4",null,null,null,7404.26,null,{"$f":"IF((E19+G19)>0,(E19+G19)/'Operational Data'!$G$24, \"-\")","v":1.7633792056212766E-2}]
["Process Water",null,null,null,null,null,null,null,{"$f":"IF((E20+G20)>0,(E20+G20)/'Operational Data'!$G$24, \"-\")","v":"-"}]
[null,null,null,null,null,null,null,null,{"$f":"IF((E21+G21)>0,(E21+G21)/'Operational Data'!$G$24, \"-\")","v":"-"}]
[null,null,null,null,null,null,null,null,{"$f":"IF((E22+G22)>0,(E22+G22)/'Operational Data'!$G$24, \"-\")","v":"-"}]
["Total Non-Hazardous Waste",null,null,null,{"$f":"SUM(E18:F22)","v":0},null,{"$f":"SUM(G18:H22)","v":81292.319999999992},null,{"$f":"IF((E23+G23)>0,(E23+G23)/'Operational Data'!$G$24, \"-\")","v":0.19360366419427547}]
["TOTAL WASTE",null,null,null,{"$f":"+E23+E15","v":10831.29},null,{"$f":"+G23+G15","v":81292.319999999992},null,{"$f":"IF((E24+G24)>0,(E24+G24)/'Operational Data'!$G$24, \"-\")","v":0.21939918131017044}]
[]
["Operator’s comments :"]
[]
[]
[]
[]
[{"$f":"+A1","v":2025},"Annual Reporting of Water and Other Raw Material Usage"]
["Raw Material",null,null,null,"Usage",null,"Unit","Specific Usage",null,"Unit"]
["Mains Water",null,null,null,{"$f":"+'Operational Data'!G43/1000","v":212175.2},null,"m3",{"$f":"IF(E33>0,E33/'Operational Data'!$G$24,\"-\")","v":0.50531090970405612},null,"m3/te"]
["Total Water",null,null,null,{"$f":"+'Operational Data'!G44+'Operational Data'!G43/1000","v":212175.2},null,"m3",{"$f":"IF(E34>0,E34/'Operational Data'!$G$24,\"-\")","v":0.50531090970405612},null,"m3/te"]
["Urea / Ammonia",null,null,null,{"$f":"+'Operational Data'!G45","v":1558560},null,"kg",{"$f":"IF(E35>0,E35/'Operational Data'!$G$24,\"-\")","v":3.7118257526249709},null,"kg/te"]
["Activated Carbon",null,null,null,{"$f":"+'Operational Data'!G47","v":142990},null,"kg",{"$f":"IF(E36>0,E36/'Operational Data'!$G$24,\"-\")","v":0.34054124600133751},null,"kg/te"]
["Lime / hydrated lime / Sodium Bicarb.",null,null,null,{"$f":"+'Operational Data'!G48","v":3583980},null,"kg",{"$f":"IF(E37>0,E37/'Operational Data'!$G$24,\"-\")","v":8.5355130767457421},null,"kg/te"]
[]
["Operator’s comments :"]
[]
[]
[]
[{"$f":"+A31","v":2025},"Annual Reporting of other performance indicators "]
["Parameter",null,"Results by Line"]
[null,null,"A1","A2","A3","A4","A5",null,"Turbine 1","Turbine 2"]
["Operating hours for the year, hours",null,8090.18,7979.42,null,null,null,null,8336.93]
["Number of periods of abnormal operation, qty.",null,0,0]
["Cumulative hours of abnormal operation for this year, hours",null,0,0]
[]
["Operator’s comments :"]
[]
[]
[]
["Signed: ","Shehzad",null,null,null,null,"Date:","2026-01-15"]

{"sheet":"Energy Form 1","index":5,"n_rows":29,"n_cols":8,"rows_kept":29,"cut":false,"hidden":false,"merged":[[15,0,15,2],[15,3,15,4],[15,6,15,8],[17,0,17,8],[18,0,24,8],[13,0,13,2],[13,3,13,4],[13,6,13,8],[14,0,14,2],[14,3,14,4],[14,6,14,8],[11,0,11,2],[11,3,11,4],[11,6,11,8],[12,0,12,2],[12,3,12,4],[12,6,12,8],[9,0,9,2],[9,3,9,4],[9,6,9,8],[10,0,10,2],[10,3,10,4],[10,6,10,8],[2,6,2,8],[4,1,4,4],[6,3,6,4],[6,6,6,7],[8,0,8,2],[8,3,8,4],[8,6,8,8]]}
[{"$f":"+'Cover Page'!C39","v":2025}," Annual Reporting of Energy Usage/Export"]
[]
[{"$f":"+'Cover Page'!B31","v":"Permit EPR/NP3738SY"},null,null,null,null,"Operator: ",{"$f":"+'Cover Page'!B37","v":"Veolia SELCHP Ltd"}]
[]
["Facility:",{"$f":"+'Cover Page'!B33:I33","v":"SELCHP"},null,null,null,"Form:","Energy 1"]
[]
["Reporting  Period from: ",null,null,{"$f":"+'Perf. Form 1'!D6:E6","v":"2025-01-01"},null,"to:",{"$f":"+'Perf. Form 1'!G6:H6","v":"2025-12-31"}]
[]
["Energy Source",null,null,"Energy Usage",null,"Unit","Specific Usage (KWh/tonne incinerated"]
["Electricity Produced",null,null,{"$f":"+'Operational Data'!G27","v":267813.5},null,"MWh",{"$f":"+'Operational Data'!H27","v":637.81763050548432}]
["Electricity Imported   ",null,null,{"$f":"+'Operational Data'!G29","v":464.09},null,"MWh",{"$f":"+'Operational Data'!H29","v":1.1052646119082505}]
["Electricity Exported",null,null,{"$f":"+'Operational Data'!G28","v":237026.51999999996},null,"MWh",{"$f":"+'Operational Data'!H28","v":564.49616376082895}]
["Gas Oil",null,null,null,null,"tonnes"]
["Steam/hot water exported",null,null,{"$f":"+'Operational Data'!G31","v":34721.799999999996},null,"GWh",{"$f":"+'Operational Data'!H31","v":82.692531193854379}]
[]
[]
[]
["Operator’s comments :"]
[]
[]
[]
[]
[]
[]
[]
[]
[]
[]
["Signed: ","Shehzad",null,null,null,null,"Date:","2026-01-15"]

{"sheet":"Permit Compliance","index":6,"n_rows":30,"n_cols":12,"rows_kept":30,"cut":false,"hidden":false,"merged":[[24,1,24,2],[25,1,25,2],[26,0,26,8],[19,7,19,8],[19,1,19,2],[19,3,19,5],[21,3,21,5],[22,3,22,5],[23,3,23,5],[24,3,24,5],[25,3,25,5],[21,1,21,2],[8,11,20,11],[28,0,28,10],[18,0,18,10],[33,1,33,3],[33,4,33,6],[33,7,33,9],[29,1,29,3],[29,4,29,6],[29,7,29,9],[30,1,30,3],[30,4,30,6],[30,7,30,9],[22,1,22,2],[23,1,23,2],[14,0,14,1],[14,2,14,4],[34,1,34,3],[34,4,34,6],[34,7,34,9],[31,1,31,3],[31,4,31,6],[31,7,31,9],[32,1,32,3],[32,4,32,6],[32,7,32,9],[14,5,14,8],[15,0,15,1],[16,2,16,4],[16,5,16,8],[15,2,15,4],[15,5,15,8],[16,0,16,1],[7,0,7,1],[7,2,7,8],[8,0,8,1],[8,2,8,4],[8,5,8,8],[35,4,35,8],[9,0,9,1],[9,2,9,4],[9,5,9,8],[10,0,10,1],[10,2,10,4],[10,5,10,8],[11,0,11,1],[11,2,11,4],[11,5,11,8],[12,0,12,1],[12,2,12,4],[12,5,12,8],[13,0,13,1],[13,2,13,4],[13,5,13,8]]}
[{"$f":"+'Cover Page'!$B$29","v":"Annual Performance Report 2025"},null,null,null,{"$f":"+'Cover Page'!$B$33","v":"SELCHP"}]
[]
["Summary of Permit Compliance"]
[]
["Compliance with permit limits for continuously monitored pollutants"]
[]
["The plant met its emission limits as shown in the table below:"]
["Substance",null,"Percentage time compliant during operationNote 1",null,null,null,null,null,null,null,null,"Notes:"]
[null,null,"Half-hourly limit",null,null,"Daily limit",null,null,null,null,null,"Note 1: Please report to 2 decimal places, i.e. xx.xx%\n\nNote 2: Please enter into this table any permit non-compliances that the EA has given a CCS score for. Please also enter any other non-compliances which you have notified to the EA (e.g. ELV exceedances) but which have not yet been assessed by the EA. There is no need to enter any notifications which were subsequently assessed by the EA not to be permit breaches.  \n\nNote 3: Please enter information here (rather than just referencing the notifications that were sent to the EA) including where relevant the incineration line reference, pollutant and value of the measured result for any ELV exceedances.   \n\n"]
["Particulates",null,1,null,null,1]
["Oxides of nitrogen",null,1,null,null,1]
["Sulphur dioxide",null,1,null,null,1]
["Carbon monoxide",null," 100% of 95% of 10-min averages",null,null,1]
["Total organic carbon",null,1,null,null,1]
["Hydrogen chloride",null,1,null,null,1]
["Hydrogen fluoride",null,1,null,null,1]
[]
[]
["Summary of non-compliances under the permit Note 2"]
["Date","Summary of non-compliance Note 3",null,"Reason ",null,null,"Measures taken to prevent reoccurrence","CCS score if applicable*"]
[null,null,null,null,null,null,null,"Impact","Root cause"]
[]
[]
[]
[]
[]
["*If the Environment Agency (EA) has given a Compliance Classification Scheme (CCS) score due to a permit non-compliance it should be entered here (CCS4 = No impact; CCS3 = Minor impact; CCS2 = Significant impact; CCS1 = Major impact). If the EA has not yet assessed a non-compliance which you have notified to them, these columns should be left blank. Enter N/A if no score was given for the root cause.  "]
[]
["Summary of any complaints received and actions to taken to resolve them."]
["Date","Summary of complaint [including Line/Reference]",null,null,"Reason (including whether substantiated by the operator or the EA)",null,null,"Measures taken to prevent reoccurrence"]

{"sheet":"Improvements","index":7,"n_rows":39,"n_cols":5,"rows_kept":39,"cut":false,"hidden":false,"merged":[[37,0,37,8],[38,0,47,8],[4,0,4,8],[5,0,13,8],[15,0,15,8],[16,0,24,8],[26,0,26,8],[27,0,35,8]]}
[{"$f":"+'Cover Page'!$B$29","v":"Annual Performance Report 2025"},null,null,null,{"$f":"+'Cover Page'!$B$33","v":"SELCHP"}]
[]
["Summary of Plant Improvements"]
[]
["Summary of any efficiency improvements that have been completed within the year."]
["Upgrade of both Boiler grates with advanced design grate bars; improving boiler efficiency and avalability."]
[]
[]
[]
[]
[]
[]
[]
[]
[]
["Summary of any permit improvement conditions that have been completed within the year and the resulting environmental benefits."]
["N/A"]
[]
[]
[]
[]
[]
[]
[]
[]
[]
["Summary of any changes to the plant or operating techniques which required a variation to the permit and a summary of the resulting environmental impact."]
["none"]
[]
[]
[]
[]
[]
[]
[]
[]
[]
["Summary of any other improvements made to the plant or planned to be made and a summary of the resulting environmental benefits."]
["As part of the life cycle analysis of the Facility the CEMS system was replaced in October 2024.  All existing analysers were replaced, plus an additional standby system was installed so that each incineration line has a dedicated standby system enhancing the system reliability and efficiency. "]

{"sheet":"Public Liasion","index":8,"n_rows":29,"n_cols":5,"rows_kept":29,"cut":false,"hidden":false,"merged":[[23,0,24,1],[23,2,24,8],[25,0,26,1],[25,2,26,8],[28,0,28,8],[17,0,18,1],[17,2,18,8],[19,0,20,1],[19,2,20,8],[21,0,22,1],[21,2,22,8],[16,0,16,1],[16,2,16,8],[5,0,5,1],[5,2,5,8],[6,0,7,1],[6,2,7,8],[8,0,9,1],[8,2,9,8],[10,0,11,1],[10,2,11,8],[12,0,13,1],[12,2,13,8],[15,0,15,8]]}
[{"$f":"+'Cover Page'!$B$29","v":"Annual Performance Report 2025"},null,null,null,{"$f":"+'Cover Page'!$B$33","v":"SELCHP"}]
[]
["Details of Public & Stakeholder Liaison"]
[]
["Summary of events held during the reporting year."]
["Date",null,"Description"]
["Various",null,"Site tours are laid on for internal and external stakeholders, as well as, higher education students. Tours are requested at selchp.com and are approved on a case by case basis. "]
[]
["2025-09-21",null,"SELCHP annual open day, as part of ‘Open House London’ "]
[]
[]
[]
[]
[]
[]
["List of events planned for next year"]
["Date",null,"Description"]
["Various",null,"Site tours are laid on for internal and external stakeholders, as well as, higher education students. Tours are requested at selchp.com and are approved on a case by case basis. "]
[]
["2026-09-01",null,"It is intended that an open day will be held in 2026.\t\t\t\t\t\n\t\t\t\t\t\t"]
[]
[]
[]
[]
[]
[]
[]
[]
["If you wish to be involved in the public liaison programme, please contact  enquiries@selchp.com"]

{"sheet":"CO2 N2O","index":9,"n_rows":25,"n_cols":6,"rows_kept":25,"cut":false,"hidden":false,"merged":[[6,5,9,5],[22,2,22,3],[25,1,25,3],[16,2,16,3],[4,0,4,3],[9,0,9,3],[17,0,17,3],[13,0,13,3],[12,0,12,1],[8,2,8,3],[11,2,11,3],[19,2,19,3]]}
[{"$f":"+'Cover Page'!$B$29","v":"Annual Performance Report 2025"},null,{"$f":"+'Cover Page'!$B$33","v":"SELCHP"}]
[]
["Carbon dioxide emissions and biogenic content of waste inputs",null,null,null,null,"Notes:"]
[]
["Carbon dioxide emissions (all types of plant)"]
[null,"Annual mass of carbon dioxide released","tonnes ",416161]
[null,"Annual mass of carbon dioxide released per tonne of waste burned","t CO2 / t waste ",{"$f":"D6/'Operational Data'!G21","v":0.98758553667180871},null,"Note 1: All permits require operators to continuously monitor CO2 to EN14181 and flow to BS EN 16911-2 (unless otherwise agreed in writing). Operators must therefore use the results from these instruments to calculate their annual CO2 emissions. Where an operator does not have a flow meter calibrated to BS EN 16911-2, the averaged flow measurement from that year's periodic monitoring can be used instead. If the plant does not have calibrated CO2 CEMS, a suitably justified emissions factor can be used. \n\n"]
[null,"Annual mass of carbon dioxide released per MWh of energy exported","t CO2 / MWh export ",{"$f":"D6/'Operational Data'!G28","v":1.7557571194986961}]
[null,"Description of how annual carbon dioxide mass emission has been calculated. \nSee Note 1","Average of average CO2% over the year converted to mg/m3 of flue gas and multiplied by total flue gas volume. All data from CEMS DHAS, QAL2'ed and QAL3'ed."]
["Nitrous oxide emissions (only plants which use ammonia or urea to abate NOx emissions)"]
[null,"Annual mass emissions of nitrous oxide","tonnes N2O",2.581]
[null,"Description of how annual nitrous oxide mass emission has been calculated\nSee Note 2","Average of average CO2% over the year converted to mg/m3 of flue gas and multiplied by total flue gas volume. All data from CEMS DHAS, QAL2'ed and QAL3'ed.",null,null,"Note 2: All permits require operators to continuously monitor N2O to EN14181 and flow to BS EN 16911-2, unless otherwise agreed in writing. Operators must therefore use the results from these instruments to calculate their annual N2O emissions. Where an operator does not have a flow meter calibrated to BS EN 16911-2, the averaged flow measurement from periodic monitoring can be used instead. If the plant does not have calibrated N2O CEMS, data from periodic monitoring or a suitably justified emissions factor can be used instead."]
["Total annual carbon dioxide + nitrous oxide emissions. \nSee Note 3. ",null,"tonnes CO2e",416845,null,"Note 3: Total annual carbon dioxide and nitrous oxide emissions reported as carbon dioxide equivalent where 1 tonne nitrous oxide is equivalent to 265 tonnes carbon dioxide."]
["Biogenic CO2 emissions (See Note 4)",null,null,null,null,"Note 4: Only plants combusting residual municipal waste, refuse derived fuel or solid recovered fuel need complete this section. "]
[null,"Percentage of total carbon dioxide emissions arising from biogenic waste","%",0.52180000000000004]
[null,"No. of measurements undertaken","Number",12]
[null,"Description of how percentage biogenic carbon dioxide emissions have been measured or calculated.\nSee Note 5","Calculated by BIOMA software using CEMS data.",null,null,"Note 5: The results from C14 sampling should be used if this is carried out at the plant (either via an installed sampler or from spot samples).  \nOtherwise, as an approximation (and in lieu of any more accurate metrics which may be developed in future), the measured or estimated biogenic fraction by net calorific value (see Note 6) can be assumed to be the same as the biogenic CO2 fraction of the total CO2 emissions from the plant. "]
["Biogenic fraction of waste feedstock (See Note 4)"]
[null,"Yearly average biogenic percentage of the waste by net calorific value (NCV)","%",0.42930000000000001]
[null,"Description of how biogenic percentage (by NCV) has been calculated or estimated. \nSee Note 6","Calculated by BIOMA software using CEMS data.",null,null,"Note 6: If C14 sampling is carried out at the plant, the methodology set out in the embedded document entitled \"Renewable Energy Association Energy Content of Fuels - Description of Method\" embedded below can be used to calculate the biogenic percentage by net calorific value. Otherwise, data from waste sampling or BIOMA software can be used; or if none of these are available, an estimated figure with justification or a figure assumed on the basis of up-to-date industry data can be used. "]
[null,"Yearly average biogenic percentage of the waste by mass","%",0.42930000000000001]
[null,"If waste sampling undertaken, no. of samples used to ascertain average biogenic percentages above","Number",12]
[null,"Description of how biogenic percentage (by mass) has been calculated or estimated. \nSee Note 7",null,null,null,"Note 7: Where available, data from waste sampling should be used; otherwise, an estimated figure with justification can be used, or a figure assumed on the basis of up-to-date industry data. "]
[]
[null,"Comments:"]

{"sheet":"Residues","index":10,"n_rows":61,"n_cols":11,"rows_kept":61,"cut":false,"hidden":false,"merged":[[61,0,66,6],[57,3,57,4],[60,0,60,6],[52,0,53,1],[54,0,54,1],[55,0,55,1],[56,0,56,1],[57,0,57,1],[54,3,54,4],[55,3,55,4],[54,5,54,6],[55,5,55,6],[56,5,56,6],[57,5,57,6],[58,0,58,6],[45,0,46,1],[45,2,46,6],[47,0,48,1],[47,2,48,6],[56,3,56,4],[52,2,53,2],[53,3,53,4],[53,5,53,6],[52,3,52,6],[51,0,51,6],[4,0,25,8],[4,10,13,13],[41,0,42,1],[41,2,42,6],[43,0,44,1],[43,2,44,6],[37,0,37,6],[38,0,38,1],[38,2,38,6],[30,0,31,6],[32,0,33,6],[34,0,35,6],[39,0,40,1],[39,2,40,6]]}
[{"$f":"+'Cover Page'!$B$29","v":"Annual Performance Report 2025"},null,null,null,{"$f":"+'Cover Page'!$B$33","v":"SELCHP"}]
[]
["Summary of Residue Handling for the reporting year"]
[]
["All Ash residues (known as Incinerator Bottom Ash or IBA) are sent for recycling, off site, by licensed contractors, subject to waste licensing legislation to an aggregate processing facility situated in Greenwich. Ferrous metal removed from the IBA is collected separately and recycled by licensed contractors. The Bottom Ash is periodically monitored to ensure effective burn out is being achieved.\n\nFine particulate matter, known as Air Pollution Control (APC) residue, removed from the flue gases by the fabric filter, is collected and sent to a specialised treatment works at Veolia Empire site located in Aldridge (West Midlands), where it is used to treat spent acid wastes prior to disposal at a licensed land fill site. All APC Residues are transported and handled within enclosed vehicles.                                                                                                                                                                                                                                                                                                                          All wastes generated by the activities is treated in accordance with the waste hierarchy referred to in Article 4 of the Waste Framework Directive.  All avenues for waste processing are continuously monitored and reviewed.",null,null,null,null,null,null,null,null,null,"Include in here a summary of residue handling regimes and destinations "]
[]
[]
[]
[]
[]
[]
[]
[]
[]
[]
[]
[]
[]
[]
[]
[]
[]
[]
[]
[]
[]
[]
["Residue Quality Monitoring Requirements"]
[]
["Summary of monitoring undertaken and compliance"]
["IBA - Two samples per month are analysed according to the ESA protocol "]
[]
["APC - One sample per quarter is analysed as per permit requirements"]
[]
[]
[]
[]
["Commentary on any specific events"]
["Date & Event",null,"Description"]
[]
[]
[]
[]
[]
[]
[]
[]
[]
[]
[]
[]
["Residue Quality Monitoring Results"]
["Parameter (unit) ",null,"Limit*","Normal Operation "]
[null,null,null,"Bottom ash  ",null,"APC Residues"]
["Loss on Ignition (average %)",null,"<5%","-"]
["Total Organic Carbon (average %)",null,"<3%",1.03]
["No. of Assessments Undertaken",null,"---",24,null,4]
["No. of Hazardous Results",null,"---",0]
["* The permit will specify a limit of either 5% loss on ignition or 3% total organic carbon. If both are measured anyway, please enter the results here, even where the limit does not apply. "]
[]
["Comments :"]

{"sheet":"Water","index":11,"n_rows":23,"n_cols":9,"rows_kept":23,"cut":false,"hidden":false,"merged":[[29,0,29,2],[29,3,29,4],[26,0,26,2],[26,3,26,4],[27,0,27,2],[27,3,27,4],[28,0,28,2],[28,3,28,4],[23,0,23,2],[23,3,23,4],[24,0,24,2],[24,3,24,4],[25,0,25,2],[25,3,25,4],[21,0,21,8],[22,0,22,2],[22,3,22,4],[14,0,15,1],[14,2,15,8],[16,0,17,1],[16,2,17,8],[18,0,19,1],[18,2,19,8],[5,0,6,8],[7,0,8,8],[9,0,10,8],[12,0,12,8],[13,0,13,1],[13,2,13,8]]}
[{"$f":"+'Cover Page'!$B$29","v":"Annual Performance Report 2025"},null,null,null,{"$f":"+'Cover Page'!$B$33","v":"SELCHP"}]
[]
["Emissions to Water"]
[]
["Summary of monitoring undertaken and compliance"]
["Water is only discharged off site to commercial sewer, in accordance with Thames Water's discharge consent requirements. There are no monitoring parameters set our in the permit. Although, monthly aggregate samples are sent for laboratory analysis against the discharge consent parameters."]
[]
[]
[]
[]
[]
[]
["Commentary on any specific events"]
["Date & Event",null,"Description"]
[]
[]
[]
[]
[]
[]
[]
["Emissions to Water / Sewer"]
["Parameter",null,null,"Monitoring Frequency",null,"Limit","Target","Max.","Average"]

{"sheet":"Air (periodic)","index":12,"n_rows":39,"n_cols":11,"rows_kept":39,"cut":false,"hidden":false,"merged":[[13,10,14,12],[15,10,16,10],[15,11,16,11],[15,12,16,12],[18,3,18,4],[13,3,13,4],[14,3,14,4],[15,3,15,4],[16,3,16,4],[17,3,17,4],[21,3,21,4],[22,3,22,4],[23,3,23,4],[24,3,24,4],[31,3,31,4],[25,3,25,4],[26,3,26,4],[28,3,28,4],[38,0,38,9],[19,0,19,1],[20,0,20,1],[21,0,21,1],[34,3,34,4],[35,3,35,4],[33,0,33,1],[34,0,34,1],[35,0,35,1],[36,0,36,1],[24,0,24,1],[32,3,32,4],[27,3,27,4],[33,3,33,4],[19,3,19,4],[20,3,20,4],[39,0,40,9],[25,0,25,1],[26,0,26,1],[22,0,22,1],[23,0,23,1],[37,0,37,1],[27,0,27,1],[28,0,28,1],[29,0,29,1],[30,0,30,1],[31,0,31,1],[32,0,32,1],[37,3,37,4],[29,3,29,4],[30,3,30,4],[36,3,36,4],[16,0,16,1],[17,0,17,1],[18,0,18,1],[13,0,13,1],[14,0,14,1],[15,0,15,1],[12,0,12,1],[11,3,11,4],[12,3,12,4],[9,0,10,1],[9,5,9,9],[9,3,10,4],[9,2,10,2],[5,10,8,13],[9,10,11,13],[8,0,8,9],[5,0,6,9],[11,0,11,1]]}
[{"$f":"+'Cover Page'!$B$29","v":"Annual Performance Report 2025"},null,null,null,{"$f":"+'Cover Page'!$B$33","v":"SELCHP"}]
[]
["Emissions to Air (periodically monitored)"]
[]
["Summary of monitoring undertaken, standards used and compliance",null,null,null,null,null,null,null,null,null,"Notes:"]
["Bi-Annual monitoring. Standards used as applicable; EN 1948, EN 16911-1 (MID), EN 14792, EN 12619:2013, EN 15058, EN 14790, EN ISO 21258, EN 14789, EN 14791, MID 14385, EN 1911, ISO 11338, ISO 15713, EN 14385, EN 13284-1",null,null,null,null,null,null,null,null,null,"Template may require adjustment for any bespoke monitoring requirements of permit - please also check that all default ELV values, reference periods and the stated oxygen reference value match those for your plant, and edit if necessary!"]
[]
[]
["Results of emissions to air that are periodically monitored - oxygen reference 11% "]
["Substance",null,"Ref. Period","Emission Limit Value",null,"Average",null,null,null,null,"User to add additional tables as necessary, depending on whether quarterly or bi-annual reporting is required for the compliance year"]
[null,null,null,null,null,"A1","A2","A3","A4","A5"]
["Hydrogen fluoride",null,"1 hr","1 mg/m3",null,0.05,4.7E-2]
["Cd and Tl and their compounds",null,"0.5-8hrs","0.02 mg/m3",null,1E-3,1.75E-3]
["Hg and its compounds",null,"0.5-8hrs","0.02 mg/m3",null,9.7000000000000005E-4,6.8999999999999997E-4]
["Sb, As, Pb, Cr, Co, Cu, Mn, Ni, V and their compounds",null,"0.5-8hrs","0.3 mg/m3",null,2.1999999999999999E-2,0.1295]
["Dioxins & Furans (I-TEQ)",null,"6-8hrs","0.06 ng/m3",null,6.5500000000000003E-3,1.5299999999999999E-2]
["PCBs (WHO-TEQ Humans / Mammals)",null,"6-8hrs","None set ng/m3",null,3.1280000000000001E-3,1.8E-3]
["PCBs (WHO-TEQ Fish)",null,"6-8hrs","None set ng/m3",null,4.5000000000000003E-5,8.5000000000000006E-5]
["PCBs (WHO-TEQ Birds)",null,"6-8hrs","None set ng/m3",null,1.933E-3,3.0999999999999999E-3]
["Dioxins & Furans (WHO-TEQ Humans / Mammals)",null,"6-8hrs","None set ng/m3",null,6.3E-3,1.5650000000000001E-2]
["Dioxins & Furans (WHO-TEQ Fish)",null,"6-8hrs","None set ng/m3",null,6.4999999999999997E-3,1.4749999999999999E-2]
["Dioxins & Furans (WHO-TEQ Birds)",null,"6-8hrs","None set ng/m3",null,1.1050000000000001E-2,2.0750000000000001E-2]
["Anthanthrene",null,"6-8hrs","None set µg/m3",null,2E-3,3.0000000000000001E-3]
["Benzo(a)anthracene",null,"6-8hrs","None set µg/m3",null,3.0000000000000001E-3,3.0000000000000001E-3]
["Benzo(a)pyrene",null,"6-8hrs","None set µg/m3",null,2E-3,3.0000000000000001E-3]
["Benzo(b)fluoranthene",null,"6-8hrs","None set µg/m3",null,2E-3,3.0000000000000001E-3]
["Benzo(b)naptho(2,1-d) thiophene",null,"6-8hrs","None set µg/m3",null,2E-3,3.0000000000000001E-3]
["Benzo(c)phenanthrene",null,"6-8hrs","None set µg/m3",null,2E-3,3.0000000000000001E-3]
["Benzo(ghi)perylene",null,"6-8hrs","None set µg/m3",null,2E-3,3.0000000000000001E-3]
["Benzo(k)fluoranthene",null,"6-8hrs","None set µg/m3",null,2E-3,3.0000000000000001E-3]
["Cholanthrene",null,"6-8hrs","None set µg/m3",null,2E-3,3.0000000000000001E-3]
["Chrysene",null,"6-8hrs","None set µg/m3",null,4.0000000000000001E-3,3.0000000000000001E-3]
["Cyclopenta(cd)pyrene",null,"6-8hrs","None set µg/m3",null,2E-3,3.0000000000000001E-3]
["Dibenzo(ai)pyrene",null,"6-8hrs","None set µg/m3",null,2E-3,3.0000000000000001E-3]
["Dibenzo(ah)anthracene",null,"6-8hrs","None set µg/m3",null,2E-3,3.0000000000000001E-3]
["Fluoranthene",null,"6-8hrs","None set µg/m3",null,0.01,0.06]
["Indeno(123-cd) pyrene",null,"6-8hrs","None set µg/m3",null,2E-3,3.0000000000000001E-3]
["Naphthalene",null,"6-8hrs","None set µg/m3",null,0.37,0.62]
["Comments :"]

{"sheet":"Air (CEMS)","index":13,"n_rows":28,"n_cols":14,"rows_kept":28,"cut":false,"hidden":false,"merged":[[28,0,29,12],[13,0,14,0],[5,0,6,12],[7,0,8,12],[10,0,10,12],[11,0,12,0],[11,2,12,2],[11,1,12,1],[11,3,11,4],[11,5,11,6],[11,7,11,8],[11,9,11,10],[11,11,11,12],[14,13,15,13],[14,14,15,14],[14,15,15,15],[12,13,13,15],[26,0,26,12]]}
[{"$f":"+'Cover Page'!$B$29","v":"Annual Performance Report 2025"},null,null,null,null,null,null,null,{"$f":"+'Cover Page'!$B$33","v":"SELCHP"}]
[]
["Emissions to Air (continuously monitored)"]
[null,null,null,null,null,null,null,null,null,null,null,null,null,"Notes:"]
["Summary of monitoring undertaken, standards used and compliance",null,null,null,null,null,null,null,null,null,null,null,null,"Template may require adjustment for any bespoke monitoring requirements of permit"]
["Four MCERT cretified CEMS have been installed at the base of the Chimeney. Two duty, one for each combustion line and two standby for each combustion line. Extractive sampling heated lines smple the flues gases. Instuments; MIR-FT, FID, in flue electrified probe",null,null,null,null,null,null,null,null,null,null,null,null,"Please check that all default ELV values match those for your plant and edit if necessary!"]
[null,null,null,null,null,null,null,null,null,null,null,null,null,"Report to 1 decimal place"]
[]
[]
[]
["Results of emissions to air that are continuously monitored (maximum and average values for each line) - oxygen reference 11%"]
["Substance","Reference Period","Emission Limit Value","A1",null,"A2",null,"A3",null,"A4",null,"A5"]
[null,null,null,"Max.","Avg.","Max.","Avg.","Max.","Avg.","Max.","Avg.","Max.","Avg."]
["Oxides of nitrogen","Daily mean","180 mg/m3 ",177.08,161.56,175.26,165.18]
[null,"½ hourly mean","400 mg/m3 ",266.42,161.16249999999999,360.95,165.02]
["Particulates","Daily mean","5 mg/m3",3,1.34,3.39,1.17]
[null,"½ hourly mean","30 mg/m3 ",16,1.25,27.61,1.19]
["Total Organic Carbon ","Daily mean","10 mg/m3 ",1.2,0.5,0.99,0.6]
[null,"½ hourly mean","20 mg/m3 ",13.94,0.5,11.86,0.61]
["Hydrogen chloride ","Daily mean","8 mg/m3 ",6.68,4.6100000000000003,6.74,4.8600000000000003]
[null,"½ hourly mean","60 mg/m3 ",42.93,4.5999999999999996,30.19,4.8499999999999996]
["Sulphur dioxide","Daily mean","40 mg/m3 ",21.41,12.46,22.7,13.77]
[null,"½ hourly mean","200 mg/m3 ",87.1,12.48,82.59,13.82]
["Carbon monoxide ","Daily mean","50 mg/m3 ",28.8,8.67,17.29,6.64]
[null,"95%ile 10-min avg *","150 mg/m3 *",105.81,59.99,45.01,25.75]
[" Ammonia","Daily mean","15 mg/m3 ",5.5,1.55,9.1300000000000008,2.89]
["* = delete as appropriate, depending on whether your plant has half-hourly or 10-min CO ELVs\n"]
["Comments :"]

{"sheet":"HCl","index":14,"n_rows":79,"n_cols":17,"rows_kept":79,"cut":false,"hidden":false,"merged":[[12,16,15,18],[51,9,63,9],[66,9,78,9],[4,9,4,14],[4,1,4,3],[4,4,4,6],[48,0,51,6],[47,0,47,6],[6,9,18,9],[21,9,33,9],[36,9,48,9],[3,16,7,18],[9,16,11,18],[18,4,18,6]]}
[{"$f":"+'Cover Page'!$B$29","v":"Annual Performance Report 2025"},null,null,null,{"$f":"+'Cover Page'!$B$33","v":"SELCHP"}]
[]
["Monitoring of Hydrogen Chloride emissions",null,null,"Whole Installation",null,null,"See  Notes in Cell Q3",null,null,{"$f":"+A3","v":"Monitoring of Hydrogen Chloride emissions"},null,null,null,"Per Combustion Line",null,null,"Notes:"]
[null,null,null,null,null,null,null,null,null,null,null,null,null,null,null,null,"User to add logic to complete Whole installation, Table A5:G18. From the data in Per Combustion Line, Table J6:O79, subject to No. of lines installed"]
[{"$f":"+'Cover Page'!C39","v":2025},"1/2 Hourly Reference Periods",null,null,"Daily Reference Periods"]
["mg/Nm3","1/2 hourly HCl ELV","Monthly mean of half-hourly averages","Highest half- hourly average","Daily HCl ELV","Monthly mean of  daily averages","Highest daily average",null,null,{"$f":"+A5","v":2025},"mg/Nm3","Monthly mean of half-hourly averages","Highest half- hourly average","Monthly mean of  daily averages","Highest daily average"]
["Jan",60,4.99,18.899999999999999,8,5,6,null,null,"A1","Jan",4.7300000000000004,18.899999999999999,4.74,5.78]
["Feb",60,4.74,23.1,8,4.7699999999999996,6.37,null,null,null,"Feb",4.46,23.1,4.49,5.84]
["Mar",60,4.79,42.93,8,4.79,6.3,null,null,null,"Mar",4.57,42.93,4.57,5.55,null,"Whole Installation table A5:G18:"]
["Apr",60,4.8,19.11,8,4.8099999999999996,6.43,null,null,null,"Apr",4.59,15.2,4.59,6.11,null,"Mean: for 1/2 hourly and daily periods calculate mean of values across all operational combustion lines for the month"]
["May",60,4.68,22.23,8,4.66,6.02,null,null,null,"May",4.18,12.33,4.1500000000000004,5.69]
["Jun",60,4.93,14.98,8,4.93,6.68,null,null,null,"Jun",4.79,14.98,4.79,6.68]
["Jul",60,4.93,22.28,8,4.96,6.46,null,null,null,"Jul",4.7699999999999996,13.11,4.8600000000000003,6.24,null,"Maximum: for 1/2 hourly and daily periods use the highest value across all operational combustion lines for the month"]
["Aug",60,4.47,14.4,8,4.54,5.57,null,null,null,"Aug",4.47,14.12,4.51,5.57]
["Sep",60,4.4800000000000004,18.350000000000001,8,4.4800000000000004,6.74,null,null,null,"Sep",4.5199999999999996,16.37,4.51,6.65]
["Oct",60,4.41,13.2,8,4.41,6.33,null,null,null,"Oct",4.54,12.86,4.54,5.97]
["Nov",60,4.6900000000000004,22.45,8,4.6900000000000004,5.98,null,null,null,"Nov",4.83,17.170000000000002,4.83,5.95]
["Dec",60,4.7300000000000004,20.72,8,4.75,6.08,null,null,null,"Dec",4.6900000000000004,20.72,4.6900000000000004,5.61]
[null,null,null,null,null,null,null,null,null,null,"Annual",{"$f":"AVERAGE(L7:L18)","v":4.5949999999999998},{"$f":"MAX(M7:M18)","v":42.93},{"$f":"AVERAGE(N7:N18)","v":4.6058333333333321},{"$f":"MAX(O7:O18)","v":6.68}]
[]
[null,null,null,null,null,null,null,null,null,{"$f":"+A5","v":2025},"mg/Nm3","Monthly mean of half-hourly averages","Highest half- hourly average","Monthly mean of  daily averages","Highest daily average"]
[null,null,null,null,null,null,null,null,null,"A2","Jan",5.24,11.79,5.23,6]
[null,null,null,null,null,null,null,null,null,null,"Feb",5,13.62,5.04,6.37]
[null,null,null,null,null,null,null,null,null,null,"Mar",5.0199999999999996,30.19,5.0199999999999996,6.3]
[null,null,null,null,null,null,null,null,null,null,"Apr",5.03,19.11,5.05,6.43]
[null,null,null,null,null,null,null,null,null,null,"May",5.18,22.23,5.16,6.02]
[null,null,null,null,null,null,null,null,null,null,"Jun",5.08,13.08,5.07,6.13]
[null,null,null,null,null,null,null,null,null,null,"Jul",5.05,22.28,5.03,6.46]
[null,null,null,null,null,null,null,null,null,null,"Aug",4.47,14.4,4.59,5.57]
[null,null,null,null,null,null,null,null,null,null,"Sep",4.45,18.350000000000001,4.45,6.74]
[null,null,null,null,null,null,null,null,null,null,"Oct",4.29,13.2,4.29,6.33]
[null,null,null,null,null,null,null,null,null,null,"Nov",4.55,22.45,4.55,5.98]
[null,null,null,null,null,null,null,null,null,null,"Dec",4.78,16.61,4.8099999999999996,6.08]
[null,null,null,null,null,null,null,null,null,null,"Annual",{"$f":"AVERAGE(L22:L33)","v":4.8449999999999998},{"$f":"MAX(M22:M33)","v":30.19},{"$f":"AVERAGE(N22:N33)","v":4.8574999999999999},{"$f":"MAX(O22:O33)","v":6.74}]
[]
[null,null,null,null,null,null,null,null,null,{"$f":"+A5","v":2025},"mg/Nm3","Monthly mean of half-hourly averages","Highest half- hourly average","Monthly mean of  daily averages","Highest daily average"]
[null,null,null,null,null,null,null,null,null,"A3","Jan"]
[null,null,null,null,null,null,null,null,null,null,"Feb"]
[null,null,null,null,null,null,null,null,null,null,"Mar"]
[null,null,null,null,null,null,null,null,null,null,"Apr"]
[null,null,null,null,null,null,null,null,null,null,"May"]
[null,null,null,null,null,null,null,null,null,null,"Jun"]
[null,null,null,null,null,null,null,null,null,null,"Jul"]
[null,null,null,null,null,null,null,null,null,null,"Aug"]
[null,null,null,null,null,null,null,null,null,null,"Sep"]
[null,null,null,null,null,null,null,null,null,null,"Oct"]
[null,null,null,null,null,null,null,null,null,null,"Nov"]
["Comments :",null,null,null,null,null,null,null,null,null,"Dec"]
[null,null,null,null,null,null,null,null,null,null,"Annual",{"$f":"AVERAGE(L37:L48)","v":{"$error":"#DIV/0!"}},{"$f":"MAX(M37:M48)","v":0},{"$f":"AVERAGE(N37:N48)","v":{"$error":"#DIV/0!"}},{"$f":"MAX(O37:O48)","v":0}]
[]
[null,null,null,null,null,null,null,null,null,{"$f":"+A5","v":2025},"mg/Nm3","Monthly mean of half-hourly averages","Highest half- hourly average","Monthly mean of  daily averages","Highest daily average"]
[null,null,null,null,null,null,null,null,null,"A4","Jan"]
[null,null,null,null,null,null,null,null,null,null,"Feb"]
[null,null,null,null,null,null,null,null,null,null,"Mar"]
[null,null,null,null,null,null,null,null,null,null,"Apr"]
[null,null,null,null,null,null,null,null,null,null,"May"]
[null,null,null,null,null,null,null,null,null,null,"Jun"]
[null,null,null,null,null,null,null,null,null,null,"Jul"]
[null,null,null,null,null,null,null,null,null,null,"Aug"]
[null,null,null,null,null,null,null,null,null,null,"Sep"]
[null,null,null,null,null,null,null,null,null,null,"Oct"]
[null,null,null,null,null,null,null,null,null,null,"Nov"]
[null,null,null,null,null,null,null,null,null,null,"Dec"]
[null,null,null,null,null,null,null,null,null,null,"Annual",{"$f":"AVERAGE(L52:L63)","v":{"$error":"#DIV/0!"}},{"$f":"MAX(M52:M63)","v":0},{"$f":"AVERAGE(N52:N63)","v":{"$error":"#DIV/0!"}},{"$f":"MAX(O52:O63)","v":0}]
[]
[null,null,null,null,null,null,null,null,null,{"$f":"+A5","v":2025},"mg/Nm3","Monthly mean of half-hourly averages","Highest half- hourly average","Monthly mean of  daily averages","Highest daily average"]
[null,null,null,null,null,null,null,null,null,"A5","Jan"]
[null,null,null,null,null,null,null,null,null,null,"Feb"]
[null,null,null,null,null,null,null,null,null,null,"Mar"]
[null,null,null,null,null,null,null,null,null,null,"Apr"]
[null,null,null,null,null,null,null,null,null,null,"May"]
[null,null,null,null,null,null,null,null,null,null,"Jun"]
[null,null,null,null,null,null,null,null,null,null,"Jul"]
[null,null,null,null,null,null,null,null,null,null,"Aug"]
[null,null,null,null,null,null,null,null,null,null,"Sep"]
[null,null,null,null,null,null,null,null,null,null,"Oct"]
[null,null,null,null,null,null,null,null,null,null,"Nov"]
[null,null,null,null,null,null,null,null,null,null,"Dec"]
[null,null,null,null,null,null,null,null,null,null,"Annual",{"$f":"AVERAGE(L67:L78)","v":{"$error":"#DIV/0!"}},{"$f":"MAX(M67:M78)","v":0},{"$f":"AVERAGE(N67:N78)","v":{"$error":"#DIV/0!"}},{"$f":"MAX(O67:O78)","v":0}]

{"sheet":"SO2","index":15,"n_rows":79,"n_cols":17,"rows_kept":79,"cut":false,"hidden":false,"merged":[[3,16,7,18],[9,16,11,18],[12,16,15,18],[66,9,78,9],[4,1,4,3],[4,4,4,6],[4,9,4,14],[6,9,18,9],[21,9,33,9],[36,9,48,9],[47,0,47,6],[48,0,51,6],[51,9,63,9],[18,4,18,6]]}
[{"$f":"+'Cover Page'!$B$29","v":"Annual Performance Report 2025"},null,null,null,{"$f":"+'Cover Page'!$B$33","v":"SELCHP"}]
[]
["Monitoring of Sulphur dioxide emissions",null,null,"Whole Installation",null,null,"See  Notes in Cell Q3",null,null,{"$f":"+A3","v":"Monitoring of Sulphur dioxide emissions"},null,null,null,"Per Combustion Line",null,null,"Notes:"]
[null,null,null,null,null,null,null,null,null,null,null,null,null,null,null,null,"User to add logic to complete Whole installation, Table A5:G18. From the data in Per Combustion Line, Table J6:O79, subject to No. of lines installed"]
[{"$f":"+'Cover Page'!C39","v":2025},"1/2 Hourly Reference Periods",null,null,"Daily Reference Periods"]
["mg/Nm3","1/2 hourly SO2 ELV","Monthly mean of half-hourly averages","Highest half- hourly average","Daily SO2 ELV","Monthly mean of  daily averages","Highest daily average",null,null,{"$f":"+A5","v":2025},"mg/Nm3","Monthly mean of half-hourly averages","Highest half- hourly average","Monthly mean of  daily averages","Highest daily average"]
["Jan",200,15.04,38.270000000000003,40,15.05,19.059999999999999,null,null,"A1","Jan",14.94,38.270000000000003,14.88,17.47]
["Feb",200,15.25,43.91,40,15.25,18.8,null,null,null,"Feb",15.27,43.91,15.23,18.8]
["Mar",200,16.77,76.11,40,16.78,21.41,null,null,null,"Mar",16.739999999999998,76.11,16.75,21.41,null,"Whole Installation table A5:G18:"]
["Apr",200,13.09,33.479999999999997,40,13.04,16.47,null,null,null,"Apr",12.58,33.479999999999997,12.58,16.47,null,"Mean: for 1/2 hourly and daily periods calculate mean of values across all operational combustion lines for the month"]
["May",200,12.83,74.16,40,12.65,16.64,null,null,null,"May",12.19,74.16,12,15.08]
["Jun",200,13.01,87.1,40,12.96,19.68,null,null,null,"Jun",12.97,87.1,12.97,19.68]
["Jul",200,12.36,42.86,40,12.36,15.13,null,null,null,"Jul",12.94,42.86,13.05,15.13,null,"Maximum: for 1/2 hourly and daily periods use the highest value across all operational combustion lines for the month"]
["Aug",200,14.33,82.59,40,14.28,22.7,null,null,null,"Aug",12.65,70.91,12.6,18.21]
["Sep",200,11.35,34.21,40,11.35,15.35,null,null,null,"Sep",10.14,29.32,10.09,12.9]
["Oct",200,10.96,40.29,40,10.96,18.82,null,null,null,"Oct",9.83,39.74,9.83,13.02]
["Nov",200,11.69,55.86,40,11.69,15.94,null,null,null,"Nov",10.64,55.86,10.64,14.19]
["Dec",200,10.76,69.78,40,10.74,22.11,null,null,null,"Dec",8.92,69.78,8.92,12.97]
[null,null,null,null,null,null,null,null,null,null,"Annual",{"$f":"AVERAGE(L7:L18)","v":12.484166666666665},{"$f":"MAX(M7:M18)","v":87.1},{"$f":"AVERAGE(N7:N18)","v":12.461666666666666},{"$f":"MAX(O7:O18)","v":21.41}]
[]
[null,null,null,null,null,null,null,null,null,{"$f":"+A5","v":2025},"mg/Nm3","Monthly mean of half-hourly averages","Highest half- hourly average","Monthly mean of  daily averages","Highest daily average"]
[null,null,null,null,null,null,null,null,null,"A2","Jan",15.13,28.09,15.2,19.059999999999999]
[null,null,null,null,null,null,null,null,null,null,"Feb",15.23,35.96,15.28,17.37]
[null,null,null,null,null,null,null,null,null,null,"Mar",16.8,67.64,16.82,20.03]
[null,null,null,null,null,null,null,null,null,null,"Apr",13.65,30.39,13.58,16.28]
[null,null,null,null,null,null,null,null,null,null,"May",13.47,43.31,13.3,16.64]
[null,null,null,null,null,null,null,null,null,null,"Jun",13.06,34.92,12.95,15.24]
[null,null,null,null,null,null,null,null,null,null,"Jul",11.9,27.69,11.84,14.51]
[null,null,null,null,null,null,null,null,null,null,"Aug",16.53,82.59,16.350000000000001,22.7]
[null,null,null,null,null,null,null,null,null,null,"Sep",12.52,34.21,12.52,15.35]
[null,null,null,null,null,null,null,null,null,null,"Oct",12.1,40.29,12.1,18.82]
[null,null,null,null,null,null,null,null,null,null,"Nov",12.73,40.68,12.73,15.94]
[null,null,null,null,null,null,null,null,null,null,"Dec",12.66,48.14,12.62,22.11]
[null,null,null,null,null,null,null,null,null,null,"Annual",{"$f":"AVERAGE(L22:L33)","v":13.815},{"$f":"MAX(M22:M33)","v":82.59},{"$f":"AVERAGE(N22:N33)","v":13.774166666666666},{"$f":"MAX(O22:O33)","v":22.7}]
[]
[null,null,null,null,null,null,null,null,null,{"$f":"+A5","v":2025},"mg/Nm3","Monthly mean of half-hourly averages","Highest half- hourly average","Monthly mean of  daily averages","Highest daily average"]
[null,null,null,null,null,null,null,null,null,"A3","Jan"]
[null,null,null,null,null,null,null,null,null,null,"Feb"]
[null,null,null,null,null,null,null,null,null,null,"Mar"]
[null,null,null,null,null,null,null,null,null,null,"Apr"]
[null,null,null,null,null,null,null,null,null,null,"May"]
[null,null,null,null,null,null,null,null,null,null,"Jun"]
[null,null,null,null,null,null,null,null,null,null,"Jul"]
[null,null,null,null,null,null,null,null,null,null,"Aug"]
[null,null,null,null,null,null,null,null,null,null,"Sep"]
[null,null,null,null,null,null,null,null,null,null,"Oct"]
[null,null,null,null,null,null,null,null,null,null,"Nov"]
["Comments :",null,null,null,null,null,null,null,null,null,"Dec"]
[null,null,null,null,null,null,null,null,null,null,"Annual",{"$f":"AVERAGE(L37:L48)","v":{"$error":"#DIV/0!"}},{"$f":"MAX(M37:M48)","v":0},{"$f":"AVERAGE(N37:N48)","v":{"$error":"#DIV/0!"}},{"$f":"MAX(O37:O48)","v":0}]
[]
[null,null,null,null,null,null,null,null,null,{"$f":"+A5","v":2025},"mg/Nm3","Monthly mean of half-hourly averages","Highest half- hourly average","Monthly mean of  daily averages","Highest daily average"]
[null,null,null,null,null,null,null,null,null,"A4","Jan"]
[null,null,null,null,null,null,null,null,null,null,"Feb"]
[null,null,null,null,null,null,null,null,null,null,"Mar"]
[null,null,null,null,null,null,null,null,null,null,"Apr"]
[null,null,null,null,null,null,null,null,null,null,"May"]
[null,null,null,null,null,null,null,null,null,null,"Jun"]
[null,null,null,null,null,null,null,null,null,null,"Jul"]
[null,null,null,null,null,null,null,null,null,null,"Aug"]
[null,null,null,null,null,null,null,null,null,null,"Sep"]
[null,null,null,null,null,null,null,null,null,null,"Oct"]
[null,null,null,null,null,null,null,null,null,null,"Nov"]
[null,null,null,null,null,null,null,null,null,null,"Dec"]
[null,null,null,null,null,null,null,null,null,null,"Annual",{"$f":"AVERAGE(L52:L63)","v":{"$error":"#DIV/0!"}},{"$f":"MAX(M52:M63)","v":0},{"$f":"AVERAGE(N52:N63)","v":{"$error":"#DIV/0!"}},{"$f":"MAX(O52:O63)","v":0}]
[]
[null,null,null,null,null,null,null,null,null,{"$f":"+A5","v":2025},"mg/Nm3","Monthly mean of half-hourly averages","Highest half- hourly average","Monthly mean of  daily averages","Highest daily average"]
[null,null,null,null,null,null,null,null,null,"A5","Jan"]
[null,null,null,null,null,null,null,null,null,null,"Feb"]
[null,null,null,null,null,null,null,null,null,null,"Mar"]
[null,null,null,null,null,null,null,null,null,null,"Apr"]
[null,null,null,null,null,null,null,null,null,null,"May"]
[null,null,null,null,null,null,null,null,null,null,"Jun"]
[null,null,null,null,null,null,null,null,null,null,"Jul"]
[null,null,null,null,null,null,null,null,null,null,"Aug"]
[null,null,null,null,null,null,null,null,null,null,"Sep"]
[null,null,null,null,null,null,null,null,null,null,"Oct"]
[null,null,null,null,null,null,null,null,null,null,"Nov"]
[null,null,null,null,null,null,null,null,null,null,"Dec"]
[null,null,null,null,null,null,null,null,null,null,"Annual",{"$f":"AVERAGE(L67:L78)","v":{"$error":"#DIV/0!"}},{"$f":"MAX(M67:M78)","v":0},{"$f":"AVERAGE(N67:N78)","v":{"$error":"#DIV/0!"}},{"$f":"MAX(O67:O78)","v":0}]

{"sheet":"NOx","index":16,"n_rows":79,"n_cols":17,"rows_kept":79,"cut":false,"hidden":false,"merged":[[3,16,7,18],[9,16,11,18],[12,16,15,18],[66,9,78,9],[4,1,4,3],[4,4,4,6],[4,9,4,14],[6,9,18,9],[21,9,33,9],[36,9,48,9],[47,0,47,6],[48,0,51,6],[51,9,63,9],[18,4,18,6]]}
[{"$f":"+'Cover Page'!$B$29","v":"Annual Performance Report 2025"},null,null,null,{"$f":"+'Cover Page'!$B$33","v":"SELCHP"}]
[]
["Monitoring of Oxides of Nitrogen emissions",null,null,"Whole Installation",null,null,"See  Notes in Cell Q3",null,null,{"$f":"+A3","v":"Monitoring of Oxides of Nitrogen emissions"},null,null,null,"Per Combustion Line",null,null,"Notes:"]
[null,null,null,null,null,null,null,null,null,null,null,null,null,null,null,null,"User to add logic to complete Whole installation, Table A5:G18. From the data in Per Combustion Line, Table J6:O79, subject to No. of lines installed"]
[{"$f":"+'Cover Page'!C39","v":2025},"1/2 Hourly Reference Periods",null,null,"Daily Reference Periods"]
["mg/Nm3","1/2 hourly NOx ELV","Monthly mean of half-hourly averages","Highest half- hourly average","Daily NOx ELV","Monthly mean of  daily averages","Highest daily average",null,null,{"$f":"+A5","v":2025},"mg/Nm3","Monthly mean of half-hourly averages","Highest half- hourly average","Monthly mean of  daily averages","Highest daily average"]
["Jan",400,166.2,227.82,180,166.28,177.08,null,null,"A1","Jan",165.76,227.33,165.79,177.08]
["Feb",400,165.93,266.42,180,165.92,173.79,null,null,null,"Feb",165.03,266.42,165.03,173.79]
["Mar",400,165.66,217.95,180,165.81,173.5,null,null,null,"Mar",164.46,217.95,164.66,173.5,null,"Whole Installation table A5:G18:"]
["Apr",400,164.42,220.55,180,164.43,175.26,null,null,null,"Apr",161.88,211.04,161.88,170.85,null,"Mean: for 1/2 hourly and daily periods calculate mean of values across all operational combustion lines for the month"]
["May",400,164.06,270.08999999999997,180,164.26,172.33,null,null,null,"May",163.25,210.93,163.46,171.84]
["Jun",400,162.63999999999999,224.44,180,162.83000000000001,174.16,null,null,null,"Jun",162.68,218.11,162.69,170.25]
["Jul",400,151.19,231.22,180,152.65,171.9,null,null,null,"Jul",143.91999999999999,198.21,145.54,168.88,null,"Maximum: for 1/2 hourly and daily periods use the highest value across all operational combustion lines for the month"]
["Aug",400,160.35,274.33,180,161.80000000000001,174.9,null,null,null,"Aug",156.22999999999999,192.22,158.65,167.64]
["Sep",400,163.22999999999999,360.95,180,163.46,174.79,null,null,null,"Sep",160.21,237.77,160.55000000000001,174.79]
["Oct",400,160.91,220.29,180,160.91,173.73,null,null,null,"Oct",160.56,216.96,160.56,172.53]
["Nov",400,167.35,235.02,180,167.35,174.42,null,null,null,"Nov",166.75,225.55,166.75,173.03]
["Dec",400,165.17,326.19,180,165.23,173.63,null,null,null,"Dec",163.22,231.43,163.22999999999999,171.08]
[null,null,null,null,null,null,null,null,null,null,"Annual",{"$f":"AVERAGE(L7:L18)","v":161.16249999999999},{"$f":"MAX(M7:M18)","v":266.42},{"$f":"AVERAGE(N7:N18)","v":161.56583333333333},{"$f":"MAX(O7:O18)","v":177.08}]
[]
[null,null,null,null,null,null,null,null,null,{"$f":"+A5","v":2025},"mg/Nm3","Monthly mean of half-hourly averages","Highest half- hourly average","Monthly mean of  daily averages","Highest daily average"]
[null,null,null,null,null,null,null,null,null,"A2","Jan",166.62,227.82,166.74,174.31]
[null,null,null,null,null,null,null,null,null,null,"Feb",166.79,220.22,166.74,173.61]
[null,null,null,null,null,null,null,null,null,null,"Mar",166.93,210.41,167.04,173.26]
[null,null,null,null,null,null,null,null,null,null,"Apr",167.26,220.55,167.36,175.26]
[null,null,null,null,null,null,null,null,null,null,"May",164.86,270.08999999999997,165.06,172.33]
[null,null,null,null,null,null,null,null,null,null,"Jun",162.6,224.44,162.99,174.16]
[null,null,null,null,null,null,null,null,null,null,"Jul",156.88,231.22,157.9,171.9]
[null,null,null,null,null,null,null,null,null,null,"Aug",165.73,274.33,165.7,174.9]
[null,null,null,null,null,null,null,null,null,null,"Sep",166.17,360.95,166.17,173.01]
[null,null,null,null,null,null,null,null,null,null,"Oct",161.26,220.29,161.26,173.73]
[null,null,null,null,null,null,null,null,null,null,"Nov",167.96,235.02,167.96,174.42]
[null,null,null,null,null,null,null,null,null,null,"Dec",167.17,326.19,167.29,173.63]
[null,null,null,null,null,null,null,null,null,null,"Annual",{"$f":"AVERAGE(L22:L33)","v":165.01916666666668},{"$f":"MAX(M22:M33)","v":360.95},{"$f":"AVERAGE(N22:N33)","v":165.1841666666667},{"$f":"MAX(O22:O33)","v":175.26}]
[]
[null,null,null,null,null,null,null,null,null,{"$f":"+A5","v":2025},"mg/Nm3","Monthly mean of half-hourly averages","Highest half- hourly average","Monthly mean of  daily averages","Highest daily average"]
[null,null,null,null,null,null,null,null,null,"A3","Jan"]
[null,null,null,null,null,null,null,null,null,null,"Feb"]
[null,null,null,null,null,null,null,null,null,null,"Mar"]
[null,null,null,null,null,null,null,null,null,null,"Apr"]
[null,null,null,null,null,null,null,null,null,null,"May"]
[null,null,null,null,null,null,null,null,null,null,"Jun"]
[null,null,null,null,null,null,null,null,null,null,"Jul"]
[null,null,null,null,null,null,null,null,null,null,"Aug"]
[null,null,null,null,null,null,null,null,null,null,"Sep"]
[null,null,null,null,null,null,null,null,null,null,"Oct"]
[null,null,null,null,null,null,null,null,null,null,"Nov"]
["Comments :",null,null,null,null,null,null,null,null,null,"Dec"]
[null,null,null,null,null,null,null,null,null,null,"Annual",{"$f":"AVERAGE(L37:L48)","v":{"$error":"#DIV/0!"}},{"$f":"MAX(M37:M48)","v":0},{"$f":"AVERAGE(N37:N48)","v":{"$error":"#DIV/0!"}},{"$f":"MAX(O37:O48)","v":0}]
[]
[null,null,null,null,null,null,null,null,null,{"$f":"+A5","v":2025},"mg/Nm3","Monthly mean of half-hourly averages","Highest half- hourly average","Monthly mean of  daily averages","Highest daily average"]
[null,null,null,null,null,null,null,null,null,"A4","Jan"]
[null,null,null,null,null,null,null,null,null,null,"Feb"]
[null,null,null,null,null,null,null,null,null,null,"Mar"]
[null,null,null,null,null,null,null,null,null,null,"Apr"]
[null,null,null,null,null,null,null,null,null,null,"May"]
[null,null,null,null,null,null,null,null,null,null,"Jun"]
[null,null,null,null,null,null,null,null,null,null,"Jul"]
[null,null,null,null,null,null,null,null,null,null,"Aug"]
[null,null,null,null,null,null,null,null,null,null,"Sep"]
[null,null,null,null,null,null,null,null,null,null,"Oct"]
[null,null,null,null,null,null,null,null,null,null,"Nov"]
[null,null,null,null,null,null,null,null,null,null,"Dec"]
[null,null,null,null,null,null,null,null,null,null,"Annual",{"$f":"AVERAGE(L52:L63)","v":{"$error":"#DIV/0!"}},{"$f":"MAX(M52:M63)","v":0},{"$f":"AVERAGE(N52:N63)","v":{"$error":"#DIV/0!"}},{"$f":"MAX(O52:O63)","v":0}]
[]
[null,null,null,null,null,null,null,null,null,{"$f":"+A5","v":2025},"mg/Nm3","Monthly mean of half-hourly averages","Highest half- hourly average","Monthly mean of  daily averages","Highest daily average"]
[null,null,null,null,null,null,null,null,null,"A5","Jan"]
[null,null,null,null,null,null,null,null,null,null,"Feb"]
[null,null,null,null,null,null,null,null,null,null,"Mar"]
[null,null,null,null,null,null,null,null,null,null,"Apr"]
[null,null,null,null,null,null,null,null,null,null,"May"]
[null,null,null,null,null,null,null,null,null,null,"Jun"]
[null,null,null,null,null,null,null,null,null,null,"Jul"]
[null,null,null,null,null,null,null,null,null,null,"Aug"]
[null,null,null,null,null,null,null,null,null,null,"Sep"]
[null,null,null,null,null,null,null,null,null,null,"Oct"]
[null,null,null,null,null,null,null,null,null,null,"Nov"]
[null,null,null,null,null,null,null,null,null,null,"Dec"]
[null,null,null,null,null,null,null,null,null,null,"Annual",{"$f":"AVERAGE(L67:L78)","v":{"$error":"#DIV/0!"}},{"$f":"MAX(M67:M78)","v":0},{"$f":"AVERAGE(N67:N78)","v":{"$error":"#DIV/0!"}},{"$f":"MAX(O67:O78)","v":0}]

{"sheet":"TOC","index":17,"n_rows":79,"n_cols":17,"rows_kept":79,"cut":false,"hidden":false,"merged":[[3,16,7,18],[9,16,11,18],[12,16,15,18],[66,9,78,9],[4,1,4,3],[4,4,4,6],[4,9,4,14],[6,9,18,9],[21,9,33,9],[36,9,48,9],[47,0,47,6],[48,0,51,6],[51,9,63,9]]}
[{"$f":"+'Cover Page'!$B$29","v":"Annual Performance Report 2025"},null,null,null,{"$f":"+'Cover Page'!$B$33","v":"SELCHP"}]
[]
["Monitoring of Total organic carbon emissions",null,null,"Whole Installation",null,null,"See  Notes in Cell Q3",null,null,{"$f":"+A3","v":"Monitoring of Total organic carbon emissions"},null,null,null,"Per Combustion Line",null,null,"Notes:"]
[null,null,null,null,null,null,null,null,null,null,null,null,null,null,null,null,"User to add logic to complete Whole installation, Table A5:G18. From the data in Per Combustion Line, Table J6:O79, subject to No. of lines installed"]
[{"$f":"+'Cover Page'!C39","v":2025},"1/2 Hourly Reference Periods",null,null,"Daily Reference Periods"]
["mg/Nm3","1/2 hourly TOC ELV","Monthly mean of half-hourly averages","Highest half- hourly average","Daily TOC ELV","Monthly mean of  daily averages","Highest daily average",null,null,{"$f":"+A5","v":2025},"mg/Nm3","Monthly mean of half-hourly averages","Highest half- hourly average","Monthly mean of  daily averages","Highest daily average"]
["Jan",20,0.63,10.75,10,0.63,0.93,null,null,"A1","Jan",0.68,10.75,0.68,0.93]
["Feb",20,0.56000000000000005,12.59,10,0.56000000000000005,1.06,null,null,null,"Feb",0.59,12.59,0.57999999999999996,1.06]
["Mar",20,0.63,11.86,10,0.62,1.2,null,null,null,"Mar",0.65,8.5299999999999994,0.65,1.2,null,"Whole Installation table A5:G18:"]
["Apr",20,0.56999999999999995,8.8000000000000007,10,0.56000000000000005,0.9,null,null,null,"Apr",0.49,8.8000000000000007,0.49,0.9,null,"Mean: for 1/2 hourly and daily periods calculate mean of values across all operational combustion lines for the month"]
["May",20,0.57999999999999996,7.56,10,0.56999999999999995,0.89,null,null,null,"May",0.47,7.56,0.47,0.79]
["Jun",20,0.53,10.36,10,0.52,0.92,null,null,null,"Jun",0.46,10.36,0.46,0.92]
["Jul",20,0.64,13.35,10,0.63,1.1000000000000001,null,null,null,"Jul",0.7,13.35,0.71,1.1000000000000001,null,"Maximum: for 1/2 hourly and daily periods use the highest value across all operational combustion lines for the month"]
["Aug",20,0.59,7.68,10,0.56000000000000005,0.97,null,null,null,"Aug",0.45,7.68,0.43,0.64]
["Sep",20,0.5,11.31,10,0.5,0.78,null,null,null,"Sep",0.37,11.31,0.37,0.57999999999999996]
["Oct",20,0.48,9.2799999999999994,10,0.48,0.77,null,null,null,"Oct",0.38,9.2799999999999994,0.38,0.7]
["Nov",20,0.48,13.1,10,0.48,0.75,null,null,null,"Nov",0.41,13.1,0.41,0.75]
["Dec",20,0.47,13.94,10,0.47,0.99,null,null,null,"Dec",0.37,13.94,0.37,0.78]
[null,null,null,null,null,null,null,null,null,null,"Annual",{"$f":"AVERAGE(L7:L18)","v":0.50166666666666671},{"$f":"MAX(M7:M18)","v":13.94},{"$f":"AVERAGE(N7:N18)","v":0.5},{"$f":"MAX(O7:O18)","v":1.2}]
[]
[null,null,null,null,null,null,null,null,null,{"$f":"+A5","v":2025},"mg/Nm3","Monthly mean of half-hourly averages","Highest half- hourly average","Monthly mean of  daily averages","Highest daily average"]
[null,null,null,null,null,null,null,null,null,"A2","Jan",0.59,3.27,0.57999999999999996,0.8]
[null,null,null,null,null,null,null,null,null,null,"Feb",0.54,11.21,0.54,0.72]
[null,null,null,null,null,null,null,null,null,null,"Mar",0.6,11.86,0.57999999999999996,0.8]
[null,null,null,null,null,null,null,null,null,null,"Apr",0.65,5,0.64,0.9]
[null,null,null,null,null,null,null,null,null,null,"May",0.69,4.92,0.68,0.89]
[null,null,null,null,null,null,null,null,null,null,"Jun",0.6,3.62,0.57999999999999996,0.72]
[null,null,null,null,null,null,null,null,null,null,"Jul",0.59,5.4,0.56999999999999995,0.94]
[null,null,null,null,null,null,null,null,null,null,"Aug",0.77,5.71,0.73,0.97]
[null,null,null,null,null,null,null,null,null,null,"Sep",0.63,3.22,0.63,0.78]
[null,null,null,null,null,null,null,null,null,null,"Oct",0.57999999999999996,3.73,0.59,0.77]
[null,null,null,null,null,null,null,null,null,null,"Nov",0.55000000000000004,4.21,0.55000000000000004,0.67]
[null,null,null,null,null,null,null,null,null,null,"Dec",0.57999999999999996,4.49,0.56999999999999995,0.99]
[null,null,null,null,null,null,null,null,null,null,"Annual",{"$f":"AVERAGE(L22:L33)","v":0.61416666666666664},{"$f":"MAX(M22:M33)","v":11.86},{"$f":"AVERAGE(N22:N33)","v":0.60333333333333339},{"$f":"MAX(O22:O33)","v":0.99}]
[]
[null,null,null,null,null,null,null,null,null,{"$f":"+A5","v":2025},"mg/Nm3","Monthly mean of half-hourly averages","Highest half- hourly average","Monthly mean of  daily averages","Highest daily average"]
[null,null,null,null,null,null,null,null,null,"A3","Jan"]
[null,null,null,null,null,null,null,null,null,null,"Feb"]
[null,null,null,null,null,null,null,null,null,null,"Mar"]
[null,null,null,null,null,null,null,null,null,null,"Apr"]
[null,null,null,null,null,null,null,null,null,null,"May"]
[null,null,null,null,null,null,null,null,null,null,"Jun"]
[null,null,null,null,null,null,null,null,null,null,"Jul"]
[null,null,null,null,null,null,null,null,null,null,"Aug"]
[null,null,null,null,null,null,null,null,null,null,"Sep"]
[null,null,null,null,null,null,null,null,null,null,"Oct"]
[null,null,null,null,null,null,null,null,null,null,"Nov"]
["Comments :",null,null,null,null,null,null,null,null,null,"Dec"]
[null,null,null,null,null,null,null,null,null,null,"Annual",{"$f":"AVERAGE(L37:L48)","v":{"$error":"#DIV/0!"}},{"$f":"MAX(M37:M48)","v":0},{"$f":"AVERAGE(N37:N48)","v":{"$error":"#DIV/0!"}},{"$f":"MAX(O37:O48)","v":0}]
[]
[null,null,null,null,null,null,null,null,null,{"$f":"+A5","v":2025},"mg/Nm3","Monthly mean of half-hourly averages","Highest half- hourly average","Monthly mean of  daily averages","Highest daily average"]
[null,null,null,null,null,null,null,null,null,"A4","Jan"]
[null,null,null,null,null,null,null,null,null,null,"Feb"]
[null,null,null,null,null,null,null,null,null,null,"Mar"]
[null,null,null,null,null,null,null,null,null,null,"Apr"]
[null,null,null,null,null,null,null,null,null,null,"May"]
[null,null,null,null,null,null,null,null,null,null,"Jun"]
[null,null,null,null,null,null,null,null,null,null,"Jul"]
[null,null,null,null,null,null,null,null,null,null,"Aug"]
[null,null,null,null,null,null,null,null,null,null,"Sep"]
[null,null,null,null,null,null,null,null,null,null,"Oct"]
[null,null,null,null,null,null,null,null,null,null,"Nov"]
[null,null,null,null,null,null,null,null,null,null,"Dec"]
[null,null,null,null,null,null,null,null,null,null,"Annual",{"$f":"AVERAGE(L52:L63)","v":{"$error":"#DIV/0!"}},{"$f":"MAX(M52:M63)","v":0},{"$f":"AVERAGE(N52:N63)","v":{"$error":"#DIV/0!"}},{"$f":"MAX(O52:O63)","v":0}]
[]
[null,null,null,null,null,null,null,null,null,{"$f":"+A5","v":2025},"mg/Nm3","Monthly mean of half-hourly averages","Highest half- hourly average","Monthly mean of  daily averages","Highest daily average"]
[null,null,null,null,null,null,null,null,null,"A5","Jan"]
[null,null,null,null,null,null,null,null,null,null,"Feb"]
[null,null,null,null,null,null,null,null,null,null,"Mar"]
[null,null,null,null,null,null,null,null,null,null,"Apr"]
[null,null,null,null,null,null,null,null,null,null,"May"]
[null,null,null,null,null,null,null,null,null,null,"Jun"]
[null,null,null,null,null,null,null,null,null,null,"Jul"]
[null,null,null,null,null,null,null,null,null,null,"Aug"]
[null,null,null,null,null,null,null,null,null,null,"Sep"]
[null,null,null,null,null,null,null,null,null,null,"Oct"]
[null,null,null,null,null,null,null,null,null,null,"Nov"]
[null,null,null,null,null,null,null,null,null,null,"Dec"]
[null,null,null,null,null,null,null,null,null,null,"Annual",{"$f":"AVERAGE(L67:L78)","v":{"$error":"#DIV/0!"}},{"$f":"MAX(M67:M78)","v":0},{"$f":"AVERAGE(N67:N78)","v":{"$error":"#DIV/0!"}},{"$f":"MAX(O67:O78)","v":0}]

{"sheet":"Particulates","index":18,"n_rows":79,"n_cols":17,"rows_kept":79,"cut":false,"hidden":false,"merged":[[4,16,8,18],[10,16,12,18],[13,16,16,18],[66,9,78,9],[4,1,4,3],[4,4,4,6],[4,9,4,14],[6,9,18,9],[21,9,33,9],[36,9,48,9],[47,0,47,6],[48,0,51,6],[51,9,63,9],[18,4,18,6]]}
[{"$f":"+'Cover Page'!$B$29","v":"Annual Performance Report 2025"},null,null,null,{"$f":"+'Cover Page'!$B$33","v":"SELCHP"}]
[]
["Monitoring of Particulate matter emissions",null,null,"Whole Installation",null,null,"See  Notes in Cell Q3",null,null,{"$f":"+A3","v":"Monitoring of Particulate matter emissions"},null,null,null,"Per Combustion Line",null,null,"Notes:"]
[]
[{"$f":"+'Cover Page'!C39","v":2025},"1/2 Hourly Reference Periods",null,null,"Daily Reference Periods",null,null,null,null,null,null,null,null,null,null,null,"User to add logic to complete Whole installation, Table A5:G18. From the data in Per Combustion Line, Table J6:O79, subject to No. of lines installed"]
["mg/Nm3","1/2 hourly PM ELV","Monthly mean of half-hourly averages","Highest half- hourly average","Daily PM ELV","Monthly mean of  daily averages","Highest daily average",null,null,{"$f":"+A5","v":2025},"mg/Nm3","Monthly mean of half-hourly averages","Highest half- hourly average","Monthly mean of  daily averages","Highest daily average"]
["Jan",30,1.105,11,5,1.115,2.0499999999999998,null,null,"A1","Jan",1,11,1.03,2]
["Feb",30,1.2,9.26,5,1.2050000000000001,2.17,null,null,null,"Feb",1,4,1,1]
["Mar",30,1.33,11.34,5,1.3199999999999998,3.39,null,null,null,"Mar",1,4,1,0.93]
["Apr",30,1.375,8.83,5,1.345,3.37,null,null,null,"Apr",1,7,1,1,null,"Whole Installation table A5:G18:"]
["May",30,1.1850000000000001,8.9499999999999993,5,1.1850000000000001,1.84,null,null,null,"May",1,6,1,1,null,"Mean: for 1/2 hourly and daily periods calculate mean of values across all operational combustion lines for the month"]
["Jun",30,1.345,8.11,5,1.35,2.7,null,null,null,"Jun",1,6,1,1]
["Jul",30,1.2749999999999999,17.850000000000001,5,1.2749999999999999,2.0499999999999998,null,null,null,"Jul",1,7,1,1]
["Aug",30,1.08,27.61,5,1.0550000000000002,1.64,null,null,null,"Aug",1,10,1,1,null,"Maximum: for 1/2 hourly and daily periods use the highest value across all operational combustion lines for the month"]
["Sep",30,0.83000000000000007,8,5,1.33,3,null,null,null,"Sep",1,8,2,3]
["Oct",30,1.27,7,5,1.27,3,null,null,null,"Oct",2,7,2,3]
["Nov",30,1.27,16,5,1.27,3,null,null,null,"Nov",2,16,2,3]
["Dec",30,1.355,11.5,5,1.355,3,null,null,null,"Dec",2,10,2,3]
[null,null,null,null,null,null,null,null,null,null,"Annual",{"$f":"AVERAGE(L7:L18)","v":1.25},{"$f":"MAX(M7:M18)","v":16},{"$f":"AVERAGE(N7:N18)","v":1.3358333333333334},{"$f":"MAX(O7:O18)","v":3}]
[]
[null,null,null,null,null,null,null,null,null,{"$f":"+A5","v":2025},"mg/Nm3","Monthly mean of half-hourly averages","Highest half- hourly average","Monthly mean of  daily averages","Highest daily average"]
[null,null,null,null,null,null,null,null,null,"A2","Jan",1.21,7.38,1.2,2.0499999999999998]
[null,null,null,null,null,null,null,null,null,null,"Feb",1.4,9.26,1.41,2.17]
[null,null,null,null,null,null,null,null,null,null,"Mar",1.66,11.34,1.64,3.39]
[null,null,null,null,null,null,null,null,null,null,"Apr",1.75,8.83,1.69,3.37]
[null,null,null,null,null,null,null,null,null,null,"May",1.37,8.9499999999999993,1.37,1.84]
[null,null,null,null,null,null,null,null,null,null,"Jun",1.69,8.11,1.7,2.7]
[null,null,null,null,null,null,null,null,null,null,"Jul",1.55,17.850000000000001,1.55,2.0499999999999998]
[null,null,null,null,null,null,null,null,null,null,"Aug",1.1599999999999999,27.61,1.1100000000000001,1.64]
[null,null,null,null,null,null,null,null,null,null,"Sep",0.66,6.94,0.66,1.08]
[null,null,null,null,null,null,null,null,null,null,"Oct",0.54,4.76,0.54,0.66]
[null,null,null,null,null,null,null,null,null,null,"Nov",0.54,7.76,0.54,0.7]
[null,null,null,null,null,null,null,null,null,null,"Dec",0.71,11.5,0.71,1.33]
[null,null,null,null,null,null,null,null,null,null,"Annual",{"$f":"AVERAGE(L22:L33)","v":1.1866666666666668},{"$f":"MAX(M22:M33)","v":27.61},{"$f":"AVERAGE(N22:N33)","v":1.1766666666666667},{"$f":"MAX(O22:O33)","v":3.39}]
[]
[null,null,null,null,null,null,null,null,null,{"$f":"+A5","v":2025},"mg/Nm3","Monthly mean of half-hourly averages","Highest half- hourly average","Monthly mean of  daily averages","Highest daily average"]
[null,null,null,null,null,null,null,null,null,"A3","Jan"]
[null,null,null,null,null,null,null,null,null,null,"Feb"]
[null,null,null,null,null,null,null,null,null,null,"Mar"]
[null,null,null,null,null,null,null,null,null,null,"Apr"]
[null,null,null,null,null,null,null,null,null,null,"May"]
[null,null,null,null,null,null,null,null,null,null,"Jun"]
[null,null,null,null,null,null,null,null,null,null,"Jul"]
[null,null,null,null,null,null,null,null,null,null,"Aug"]
[null,null,null,null,null,null,null,null,null,null,"Sep"]
[null,null,null,null,null,null,null,null,null,null,"Oct"]
[null,null,null,null,null,null,null,null,null,null,"Nov"]
["Comments :",null,null,null,null,null,null,null,null,null,"Dec"]
[null,null,null,null,null,null,null,null,null,null,"Annual",{"$f":"AVERAGE(L37:L48)","v":{"$error":"#DIV/0!"}},{"$f":"MAX(M37:M48)","v":0},{"$f":"AVERAGE(N37:N48)","v":{"$error":"#DIV/0!"}},{"$f":"MAX(O37:O48)","v":0}]
[]
[null,null,null,null,null,null,null,null,null,{"$f":"+A5","v":2025},"mg/Nm3","Monthly mean of half-hourly averages","Highest half- hourly average","Monthly mean of  daily averages","Highest daily average"]
[null,null,null,null,null,null,null,null,null,"A4","Jan"]
[null,null,null,null,null,null,null,null,null,null,"Feb"]
[null,null,null,null,null,null,null,null,null,null,"Mar"]
[null,null,null,null,null,null,null,null,null,null,"Apr"]
[null,null,null,null,null,null,null,null,null,null,"May"]
[null,null,null,null,null,null,null,null,null,null,"Jun"]
[null,null,null,null,null,null,null,null,null,null,"Jul"]
[null,null,null,null,null,null,null,null,null,null,"Aug"]
[null,null,null,null,null,null,null,null,null,null,"Sep"]
[null,null,null,null,null,null,null,null,null,null,"Oct"]
[null,null,null,null,null,null,null,null,null,null,"Nov"]
[null,null,null,null,null,null,null,null,null,null,"Dec"]
[null,null,null,null,null,null,null,null,null,null,"Annual",{"$f":"AVERAGE(L52:L63)","v":{"$error":"#DIV/0!"}},{"$f":"MAX(M52:M63)","v":0},{"$f":"AVERAGE(N52:N63)","v":{"$error":"#DIV/0!"}},{"$f":"MAX(O52:O63)","v":0}]
[]
[null,null,null,null,null,null,null,null,null,{"$f":"+A5","v":2025},"mg/Nm3","Monthly mean of half-hourly averages","Highest half- hourly average","Monthly mean of  daily averages","Highest daily average"]
[null,null,null,null,null,null,null,null,null,"A5","Jan"]
[null,null,null,null,null,null,null,null,null,null,"Feb"]
[null,null,null,null,null,null,null,null,null,null,"Mar"]
[null,null,null,null,null,null,null,null,null,null,"Apr"]
[null,null,null,null,null,null,null,null,null,null,"May"]
[null,null,null,null,null,null,null,null,null,null,"Jun"]
[null,null,null,null,null,null,null,null,null,null,"Jul"]
[null,null,null,null,null,null,null,null,null,null,"Aug"]
[null,null,null,null,null,null,null,null,null,null,"Sep"]
[null,null,null,null,null,null,null,null,null,null,"Oct"]
[null,null,null,null,null,null,null,null,null,null,"Nov"]
[null,null,null,null,null,null,null,null,null,null,"Dec"]
[null,null,null,null,null,null,null,null,null,null,"Annual",{"$f":"AVERAGE(L67:L78)","v":{"$error":"#DIV/0!"}},{"$f":"MAX(M67:M78)","v":0},{"$f":"AVERAGE(N67:N78)","v":{"$error":"#DIV/0!"}},{"$f":"MAX(O67:O78)","v":0}]

{"sheet":"CO 0.5 hourly","index":19,"n_rows":82,"n_cols":17,"rows_kept":82,"cut":false,"hidden":false,"merged":[[4,0,5,6],[6,16,10,18],[12,16,14,18],[15,16,18,18],[69,9,81,9],[7,1,7,3],[7,4,7,6],[7,9,7,14],[9,9,21,9],[24,9,36,9],[39,9,51,9],[50,0,50,6],[51,0,54,6],[54,9,66,9]]}
[{"$f":"+'Cover Page'!$B$29","v":"Annual Performance Report 2025"},null,null,null,{"$f":"+'Cover Page'!$B$33","v":"SELCHP"}]
[]
["Monitoring of Carbon Monoxide (half hourly)",null,null,"Whole Installation",null,null,"See  Notes in Cell Q3",null,null,{"$f":"+A3","v":"Monitoring of Carbon Monoxide (half hourly)"},null,null,null,"Per Combustion Line",null,null,"Notes:"]
[]
["Please complete this tab for your plant if you have 1/2 hourly CO ELVs; otherwise, leave it blank and complete the CO 95% 10 min tab"]
[]
[null,null,null,null,null,null,null,null,null,null,null,null,null,null,null,null,"User to add logic to complete Whole installation, Table A5:G18. From the data in Per Combustion Line, Table J6:O79, subject to No. of lines installed"]
[{"$f":"+'Cover Page'!C39","v":2025},"1/2 Hourly Reference Periods",null,null,"Daily Reference Periods"]
["mg/Nm3","1/2 hourly CO ELV","Monthly mean of half-hourly averages","Highest half- hourly average","Daily CO ELV","Monthly mean of  daily averages","Highest daily average",null,null,{"$f":"+A8","v":2025},"mg/Nm3","Monthly mean of half-hourly averages","Highest half- hourly average","Monthly mean of  daily averages","Highest daily average"]
["Jan",100,null,null,50,null,null,null,null,"A1","Jan"]
["Feb",{"$f":"+B10","v":100},null,null,{"$f":"+E10","v":50},null,null,null,null,null,"Feb"]
["Mar",{"$f":"+B11","v":100},null,null,{"$f":"+E11","v":50},null,null,null,null,null,"Mar",null,null,null,null,null,"Whole Installation table A5:G18:"]
["Apr",100,null,null,50,null,null,null,null,null,"Apr",null,null,null,null,null,"Mean: for 1/2 hourly and daily periods calculate mean of values across all operational combustion lines for the month"]
["May",100,null,null,50,null,null,null,null,null,"May"]
["Jun",100,null,null,50,null,null,null,null,null,"Jun"]
["Jul",100,null,null,50,null,null,null,null,null,"Jul",null,null,null,null,null,"Maximum: for 1/2 hourly and daily periods use the highest value across all operational combustion lines for the month"]
["Aug",100,null,null,50,null,null,null,null,null,"Aug"]
["Sep",100,null,null,50,null,null,null,null,null,"Sep"]
["Oct",100,null,null,50,null,null,null,null,null,"Oct"]
["Nov",100,null,null,50,null,null,null,null,null,"Nov"]
["Dec",100,null,null,50,null,null,null,null,null,"Dec"]
[null,null,null,null,null,null,null,null,null,null,"Annual",{"$f":"AVERAGE(L10:L21)","v":{"$error":"#DIV/0!"}},{"$f":"MAX(M10:M21)","v":0},{"$f":"AVERAGE(N10:N21)","v":{"$error":"#DIV/0!"}},{"$f":"MAX(O10:O21)","v":0}]
[]
[null,null,null,null,null,null,null,null,null,{"$f":"+A8","v":2025},"mg/Nm3","Monthly mean of half-hourly averages","Highest half- hourly average","Monthly mean of  daily averages","Highest daily average"]
[null,null,null,null,null,null,null,null,null,"A2","Jan"]
[null,null,null,null,null,null,null,null,null,null,"Feb"]
[null,null,null,null,null,null,null,null,null,null,"Mar"]
[null,null,null,null,null,null,null,null,null,null,"Apr"]
[null,null,null,null,null,null,null,null,null,null,"May"]
[null,null,null,null,null,null,null,null,null,null,"Jun"]
[null,null,null,null,null,null,null,null,null,null,"Jul"]
[null,null,null,null,null,null,null,null,null,null,"Aug"]
[null,null,null,null,null,null,null,null,null,null,"Sep"]
[null,null,null,null,null,null,null,null,null,null,"Oct"]
[null,null,null,null,null,null,null,null,null,null,"Nov"]
[null,null,null,null,null,null,null,null,null,null,"Dec"]
[null,null,null,null,null,null,null,null,null,null,"Annual",{"$f":"AVERAGE(L25:L36)","v":{"$error":"#DIV/0!"}},{"$f":"MAX(M25:M36)","v":0},{"$f":"AVERAGE(N25:N36)","v":{"$error":"#DIV/0!"}},{"$f":"MAX(O25:O36)","v":0}]
[]
[null,null,null,null,null,null,null,null,null,{"$f":"+A8","v":2025},"mg/Nm3","Monthly mean of half-hourly averages","Highest half- hourly average","Monthly mean of  daily averages","Highest daily average"]
[null,null,null,null,null,null,null,null,null,"A3","Jan"]
[null,null,null,null,null,null,null,null,null,null,"Feb"]
[null,null,null,null,null,null,null,null,null,null,"Mar"]
[null,null,null,null,null,null,null,null,null,null,"Apr"]
[null,null,null,null,null,null,null,null,null,null,"May"]
[null,null,null,null,null,null,null,null,null,null,"Jun"]
[null,null,null,null,null,null,null,null,null,null,"Jul"]
[null,null,null,null,null,null,null,null,null,null,"Aug"]
[null,null,null,null,null,null,null,null,null,null,"Sep"]
[null,null,null,null,null,null,null,null,null,null,"Oct"]
[null,null,null,null,null,null,null,null,null,null,"Nov"]
["Comments :",null,null,null,null,null,null,null,null,null,"Dec"]
[null,null,null,null,null,null,null,null,null,null,"Annual",{"$f":"AVERAGE(L40:L51)","v":{"$error":"#DIV/0!"}},{"$f":"MAX(M40:M51)","v":0},{"$f":"AVERAGE(N40:N51)","v":{"$error":"#DIV/0!"}},{"$f":"MAX(O40:O51)","v":0}]
[]
[null,null,null,null,null,null,null,null,null,{"$f":"+A8","v":2025},"mg/Nm3","Monthly mean of half-hourly averages","Highest half- hourly average","Monthly mean of  daily averages","Highest daily average"]
[null,null,null,null,null,null,null,null,null,"A4","Jan"]
[null,null,null,null,null,null,null,null,null,null,"Feb"]
[null,null,null,null,null,null,null,null,null,null,"Mar"]
[null,null,null,null,null,null,null,null,null,null,"Apr"]
[null,null,null,null,null,null,null,null,null,null,"May"]
[null,null,null,null,null,null,null,null,null,null,"Jun"]
[null,null,null,null,null,null,null,null,null,null,"Jul"]
[null,null,null,null,null,null,null,null,null,null,"Aug"]
[null,null,null,null,null,null,null,null,null,null,"Sep"]
[null,null,null,null,null,null,null,null,null,null,"Oct"]
[null,null,null,null,null,null,null,null,null,null,"Nov"]
[null,null,null,null,null,null,null,null,null,null,"Dec"]
[null,null,null,null,null,null,null,null,null,null,"Annual",{"$f":"AVERAGE(L55:L66)","v":{"$error":"#DIV/0!"}},{"$f":"MAX(M55:M66)","v":0},{"$f":"AVERAGE(N55:N66)","v":{"$error":"#DIV/0!"}},{"$f":"MAX(O55:O66)","v":0}]
[]
[null,null,null,null,null,null,null,null,null,{"$f":"+A8","v":2025},"mg/Nm3","Monthly mean of half-hourly averages","Highest half- hourly average","Monthly mean of  daily averages","Highest daily average"]
[null,null,null,null,null,null,null,null,null,"A5","Jan"]
[null,null,null,null,null,null,null,null,null,null,"Feb"]
[null,null,null,null,null,null,null,null,null,null,"Mar"]
[null,null,null,null,null,null,null,null,null,null,"Apr"]
[null,null,null,null,null,null,null,null,null,null,"May"]
[null,null,null,null,null,null,null,null,null,null,"Jun"]
[null,null,null,null,null,null,null,null,null,null,"Jul"]
[null,null,null,null,null,null,null,null,null,null,"Aug"]
[null,null,null,null,null,null,null,null,null,null,"Sep"]
[null,null,null,null,null,null,null,null,null,null,"Oct"]
[null,null,null,null,null,null,null,null,null,null,"Nov"]
[null,null,null,null,null,null,null,null,null,null,"Dec"]
[null,null,null,null,null,null,null,null,null,null,"Annual",{"$f":"AVERAGE(L70:L81)","v":{"$error":"#DIV/0!"}},{"$f":"MAX(M70:M81)","v":0},{"$f":"AVERAGE(N70:N81)","v":{"$error":"#DIV/0!"}},{"$f":"MAX(O70:O81)","v":0}]

{"sheet":"CO 95% 10 min","index":20,"n_rows":82,"n_cols":19,"rows_kept":82,"cut":false,"hidden":false,"merged":[[4,0,5,7],[6,18,10,20],[12,18,14,20],[15,18,18,20],[69,10,81,10],[7,1,7,4],[7,5,7,7],[7,10,7,16],[9,10,21,10],[24,10,36,10],[39,10,51,10],[50,0,50,7],[51,0,54,7],[54,10,66,10]]}
[{"$f":"+'Cover Page'!$B$29","v":"Annual Performance Report 2025"},null,null,null,{"$f":"+'Cover Page'!$B$33","v":"SELCHP"}]
[]
["Monitoring of Carbon Monoxide (10-minute avg)",null,null,null,"Whole Installation",null,null,"See  Notes in Cell S3",null,{"$f":"+A3","v":"Monitoring of Carbon Monoxide (10-minute avg)"},null,null,null,null,"Per Combustion Line",null,"Notes:",null,"Notes:"]
[]
["Please complete this tab for your plant if you have 10-minute average CO ELVs; otherwise, leave it blank and complete the CO 0.5 hourly tab"]
[]
[null,null,null,null,null,null,null,null,null,null,null,null,null,null,null,null,null,null,"User to add logic to complete Whole installation, Table A5:H18. From the data in Per Combustion Line, Table K6:Q79, subject to No. of lines installed"]
[{"$f":"+'Cover Page'!C39","v":2025},"10-minute Reference Periods",null,null,null,"Daily Reference Periods"]
["mg/Nm3","95%ile 10-min avg CO ELV","Highest daily 95%ile 10-min average","Monthly mean of 10-min averages","Highest 10-min average","Daily CO ELV","Monthly mean of  daily averages","Highest daily average",null,null,{"$f":"+A8","v":2025},"mg/Nm3","Highest daily 95%ile 10-min average","Monthly mean of 10-min averages","Highest 10-min average","Monthly mean of  daily averages","Highest daily average"]
["Jan",150,105.81,11.94,1147.6500000000001,50,11.95,22.87,null,null,"A1","Jan",105.81,14.27,1147.6500000000001,14.41,22.87]
["Feb",{"$f":"+B10","v":150},70.64,10.47,1625.84,{"$f":"+F10","v":50},10.97,34.020000000000003,null,null,null,"Feb",70.64,12.48,1625.84,12.51,28.13]
["Mar",{"$f":"+B11","v":150},61.9,10.27,1420.94,{"$f":"+F11","v":50},10.31,18.61,null,null,null,"Mar",61.9,11.83,1420.94,11.88,18.61,null,"Whole Installation table A5:H18:"]
["Apr",150,90.39,9.0399999999999991,1327.82,50,9.07,28.8,null,null,null,"Apr",90.39,10.63,1327.82,10.63,28.8,null,"Mean: for 10-min and daily periods use average of all operational combustion lines."]
["May",150,74.58,7.72,1068.07,50,8.0299999999999994,24.82,null,null,null,"May",74.58,7.71,1068.07,7.77,17.96]
["Jun",150,84.65,8.1199999999999992,1704.76,50,8.36,29.59,null,null,null,"Jun",84.65,8.83,1323.28,8.84,21.05]
["Jul",150,66.37,7.84,2846.19,50,7.88,25.51,null,null,null,"Jul",66.37,8.9,2846.19,9.1,25.51,null,"Maximum: for 10-min and daily periods use the highest of all operational combustion lines in any month."]
["Aug",150,38.590000000000003,4.51,731.97,50,4.42,10.48,null,null,null,"Aug",38.590000000000003,4.76,731.97,4.5999999999999996,10.48]
["Sep",150,21.36,4.4800000000000004,1401.05,50,4.4800000000000004,14.48,null,null,null,"Sep",21.36,5.12,1401.05,5.15,14.48]
["Oct",150,23.33,5.5,1054.8399999999999,50,5.5,18.18,null,null,null,"Oct",23.33,5.97,1054.8399999999999,5.97,18.18]
["Nov",150,26.98,5.94,1322.71,50,5.93,15.57,null,null,null,"Nov",26.98,6.68,1322.71,6.68,15.57]
["Dec",150,55.25,5.88,1127.0999999999999,50,5.88,20.63,null,null,null,"Dec",55.25,6.49,1127.0999999999999,6.5,20.63]
[null,null,null,null,null,null,null,null,null,null,null,"Annual",{"$f":"AVERAGE(M10:M21)","v":59.987500000000011},null,{"$f":"MAX(O10:O21)","v":2846.19},{"$f":"AVERAGE(P10:P21)","v":8.67},{"$f":"MAX(Q10:Q21)","v":28.8}]
[]
[null,null,null,null,null,null,null,null,null,null,{"$f":"+A8","v":2025},"mg/Nm3","Highest daily 95%ile 10-min average","Monthly mean of 10-min averages","Highest 10-min average","Monthly mean of  daily averages","Highest daily average"]
[null,null,null,null,null,null,null,null,null,null,"A2","Jan",45.01,9.67,175.66,9.65,12.65]
[null,null,null,null,null,null,null,null,null,null,null,"Feb",40.130000000000003,8.5500000000000007,901.27,8.57,15.99]
[null,null,null,null,null,null,null,null,null,null,null,"Mar",30.52,8.6199999999999992,1129.01,8.65,16.04]
[null,null,null,null,null,null,null,null,null,null,null,"Apr",19.399999999999999,7.25,256.05,7.26,10.36]
[null,null,null,null,null,null,null,null,null,null,null,"May",34.700000000000003,7.73,892.68,7.66,12.32]
[null,null,null,null,null,null,null,null,null,null,null,"Jun",26.91,7.37,1704.76,7.38,17.29]
[null,null,null,null,null,null,null,null,null,null,null,"Jul",12.79,7.02,817.77,7.03,15.03]
[null,null,null,null,null,null,null,null,null,null,null,"Aug",22.86,4.1900000000000004,121.65,4.13,6.1]
[null,null,null,null,null,null,null,null,null,null,null,"Sep",14.64,3.86,218.77,3.86,5.76]
[null,null,null,null,null,null,null,null,null,null,null,"Oct",20.59,5.04,236.91,5.04,8.2799999999999994]
[null,null,null,null,null,null,null,null,null,null,null,"Nov",23.63,5.2,186.4,5.2,8.57]
[null,null,null,null,null,null,null,null,null,null,null,"Dec",17.829999999999998,5.24,360.68,5.25,7.4]
[null,null,null,null,null,null,null,null,null,null,null,"Annual",{"$f":"AVERAGE(M25:M36)","v":25.750833333333329},null,{"$f":"MAX(O25:O36)","v":1704.76},{"$f":"AVERAGE(P25:P36)","v":6.6400000000000006},{"$f":"MAX(Q25:Q36)","v":17.29}]
[]
[null,null,null,null,null,null,null,null,null,null,{"$f":"+A8","v":2025},"mg/Nm3","Highest daily 95%ile 10-min average","Monthly mean of 10-min averages","Highest 10-min average","Monthly mean of  daily averages","Highest daily average"]
[null,null,null,null,null,null,null,null,null,null,"A3","Jan"]
[null,null,null,null,null,null,null,null,null,null,null,"Feb"]
[null,null,null,null,null,null,null,null,null,null,null,"Mar"]
[null,null,null,null,null,null,null,null,null,null,null,"Apr"]
[null,null,null,null,null,null,null,null,null,null,null,"May"]
[null,null,null,null,null,null,null,null,null,null,null,"Jun"]
[null,null,null,null,null,null,null,null,null,null,null,"Jul"]
[null,null,null,null,null,null,null,null,null,null,null,"Aug"]
[null,null,null,null,null,null,null,null,null,null,null,"Sep"]
[null,null,null,null,null,null,null,null,null,null,null,"Oct"]
[null,null,null,null,null,null,null,null,null,null,null,"Nov"]
["Comments :",null,null,null,null,null,null,null,null,null,null,"Dec"]
["Environment Agency explanatory note: The 10-minute average ELV is based on the “95th percentile”. In this case this means that 95% of the 10 minute averages in the relevant 24-hour period (i.e. 137) must be below 150 mg/Nm3, and 5% (i.e. 7) are allowed to be any value above 150 mg/Nm3. Whilst we expect operators to minimise CO emissions at all times, it is perfectly acceptable for the value of the maximum 10-minute average to be above 150 mg/Nm3, provided the 95th percentile ELV has been met for that period. ",null,null,null,null,null,null,null,null,null,null,"Annual",{"$f":"AVERAGE(M40:M51)","v":{"$error":"#DIV/0!"}},null,{"$f":"MAX(O40:O51)","v":0},{"$f":"AVERAGE(P40:P51)","v":{"$error":"#DIV/0!"}},{"$f":"MAX(Q40:Q51)","v":0}]
[]
[null,null,null,null,null,null,null,null,null,null,{"$f":"+A8","v":2025},"mg/Nm3","Highest daily 95%ile 10-min average","Monthly mean of 10-min averages","Highest 10-min average","Monthly mean of  daily averages","Highest daily average"]
[null,null,null,null,null,null,null,null,null,null,"A4","Jan"]
[null,null,null,null,null,null,null,null,null,null,null,"Feb"]
[null,null,null,null,null,null,null,null,null,null,null,"Mar"]
[null,null,null,null,null,null,null,null,null,null,null,"Apr"]
[null,null,null,null,null,null,null,null,null,null,null,"May"]
[null,null,null,null,null,null,null,null,null,null,null,"Jun"]
[null,null,null,null,null,null,null,null,null,null,null,"Jul"]
[null,null,null,null,null,null,null,null,null,null,null,"Aug"]
[null,null,null,null,null,null,null,null,null,null,null,"Sep"]
[null,null,null,null,null,null,null,null,null,null,null,"Oct"]
[null,null,null,null,null,null,null,null,null,null,null,"Nov"]
[null,null,null,null,null,null,null,null,null,null,null,"Dec"]
[null,null,null,null,null,null,null,null,null,null,null,"Annual",{"$f":"AVERAGE(M55:M66)","v":{"$error":"#DIV/0!"}},null,{"$f":"MAX(O55:O66)","v":0},{"$f":"AVERAGE(P55:P66)","v":{"$error":"#DIV/0!"}},{"$f":"MAX(Q55:Q66)","v":0}]
[]
[null,null,null,null,null,null,null,null,null,null,{"$f":"+A8","v":2025},"mg/Nm3","95%ile 10-min avg maximum","Monthly CO 10-min avg mean","10-min avg maximum","Monthly daily mean","Monthly daily maximum"]
[null,null,null,null,null,null,null,null,null,null,"A5","Jan"]
[null,null,null,null,null,null,null,null,null,null,null,"Feb"]
[null,null,null,null,null,null,null,null,null,null,null,"Mar"]
[null,null,null,null,null,null,null,null,null,null,null,"Apr"]
[null,null,null,null,null,null,null,null,null,null,null,"May"]
[null,null,null,null,null,null,null,null,null,null,null,"Jun"]
[null,null,null,null,null,null,null,null,null,null,null,"Jul"]
[null,null,null,null,null,null,null,null,null,null,null,"Aug"]
[null,null,null,null,null,null,null,null,null,null,null,"Sep"]
[null,null,null,null,null,null,null,null,null,null,null,"Oct"]
[null,null,null,null,null,null,null,null,null,null,null,"Nov"]
[null,null,null,null,null,null,null,null,null,null,null,"Dec"]
[null,null,null,null,null,null,null,null,null,null,null,"Annual",{"$f":"AVERAGE(M70:M81)","v":{"$error":"#DIV/0!"}},null,{"$f":"MAX(O70:O81)","v":0},{"$f":"AVERAGE(P70:P81)","v":{"$error":"#DIV/0!"}},{"$f":"MAX(Q70:Q81)","v":0}]

{"sheet":"NH3","index":21,"n_rows":79,"n_cols":17,"rows_kept":79,"cut":false,"hidden":false,"merged":[[3,16,7,18],[9,16,11,18],[12,16,15,18],[66,9,78,9],[4,1,4,3],[4,4,4,6],[4,9,4,14],[6,9,18,9],[21,9,33,9],[36,9,48,9],[47,0,47,6],[48,0,51,6],[51,9,63,9],[18,4,18,6]]}
[{"$f":"+'Cover Page'!$B$29","v":"Annual Performance Report 2025"},null,null,null,{"$f":"+'Cover Page'!$B$33","v":"SELCHP"}]
[]
["Monitoring of Ammnonia emissions ",null,null,"Whole Installation",null,null,"See  Notes in Cell Q3",null,null,{"$f":"+A3","v":"Monitoring of Ammnonia emissions "},null,null,null,"Per Combustion Line",null,null,"Notes:"]
[null,null,null,null,null,null,null,null,null,null,null,null,null,null,null,null,"User to add logic to complete Whole installation, Table A5:G18. From the data in Per Combustion Line, Table J6:O79, subject to No. of lines installed"]
[{"$f":"+'Cover Page'!C39","v":2025},"1/2 Hourly Reference Periods",null,null,"Daily Reference Periods"]
["mg/Nm3","1/2 hourly NH3 ELV","Monthly mean of half-hourly averages","Highest half- hourly average","Daily NH3 ELV","Monthly mean of  daily averages","Highest daily average",null,null,{"$f":"+A5","v":2025},"mg/Nm3","Monthly mean of half-hourly averages","Highest half- hourly average","Monthly mean of  daily averages","Highest daily average"]
["Jan","None",3.35,21.39,15,3.36,5.5,null,null,"A1","Jan",3.63,16.71,3.66,5.5]
["Feb",{"$f":"+B7","v":"None"},2.98,15.67,15,2.98,5.3,null,null,null,"Feb",3.27,14.99,3.26,5.3]
["Mar",{"$f":"+B8","v":"None"},2.21,14.05,15,2.21,6.22,null,null,null,"Mar",1.58,14.05,1.57,2.74,null,"Whole Installation table A5:G18:"]
["Apr","None",1.98,10.48,15,1.96,4.9800000000000004,null,null,null,"Apr",0.97,9.89,0.97,2.92,null,"Mean: for 1/2 hourly and daily periods calculate mean of values across all operational combustion lines for the month"]
["May","None",2.46,14.15,15,2.4500000000000002,5.44,null,null,null,"May",0.82,6.72,0.82,1.37]
["Jun","None",2.6,16.02,15,2.54,6.82,null,null,null,"Jun",1.08,16.02,1.08,2.14]
["Jul","None",2.64,22.22,15,2.52,9.1300000000000008,null,null,null,"Jul",1.31,19.36,1.0900000000000001,3.95,null,"Maximum: for 1/2 hourly and daily periods use the highest value across all operational combustion lines for the month"]
["Aug","None",2.3199999999999998,14.18,15,2.25,4.99,null,null,null,"Aug",2.08,14.18,1.97,4.99]
["Sep","None",1.27,9.3000000000000007,15,1.26,3.6,null,null,null,"Sep",1.31,8.4700000000000006,1.31,3.6]
["Oct","None",1.58,9.69,15,1.58,4.37,null,null,null,"Oct",1.1599999999999999,5.28,1.1599999999999999,2.2200000000000002]
["Nov","None",1.61,23.7,15,1.61,4.01,null,null,null,"Nov",0.9,5.36,0.9,1.46]
["Dec","None",1.89,17.75,15,1.87,5.83,null,null,null,"Dec",0.83,11.09,0.83,2.81]
[null,null,null,null,null,null,null,null,null,null,"Annual",{"$f":"AVERAGE(L7:L18)","v":1.5783333333333331},{"$f":"MAX(M7:M18)","v":19.36},{"$f":"AVERAGE(N7:N18)","v":1.5516666666666665},{"$f":"MAX(O7:O18)","v":5.5}]
[]
[null,null,null,null,null,null,null,null,null,{"$f":"+A5","v":2025},"mg/Nm3","Monthly mean of half-hourly averages","Highest half- hourly average","Monthly mean of  daily averages","Highest daily average"]
[null,null,null,null,null,null,null,null,null,"A2","Jan",3.08,21.39,3.09,4.8499999999999996]
[null,null,null,null,null,null,null,null,null,null,"Feb",2.7,15.67,2.72,4.2699999999999996]
[null,null,null,null,null,null,null,null,null,null,"Mar",2.87,11.67,2.88,6.22]
[null,null,null,null,null,null,null,null,null,null,"Apr",3.09,10.48,3.1,4.9800000000000004]
[null,null,null,null,null,null,null,null,null,null,"May",4.09,14.15,4.08,5.44]
[null,null,null,null,null,null,null,null,null,null,"Jun",4.22,14.5,4.17,6.82]
[null,null,null,null,null,null,null,null,null,null,"Jul",3.68,22.22,3.57,9.1300000000000008]
[null,null,null,null,null,null,null,null,null,null,"Aug",2.63,13.14,2.6,4.75]
[null,null,null,null,null,null,null,null,null,null,"Sep",1.22,9.3000000000000007,1.22,2.74]
[null,null,null,null,null,null,null,null,null,null,"Oct",1.99,9.69,1.99,4.37]
[null,null,null,null,null,null,null,null,null,null,"Nov",2.31,23.7,2.31,4.01]
[null,null,null,null,null,null,null,null,null,null,"Dec",2.97,17.75,2.95,5.83]
[null,null,null,null,null,null,null,null,null,null,"Annual",{"$f":"AVERAGE(L22:L33)","v":2.9041666666666663},{"$f":"MAX(M22:M33)","v":23.7},{"$f":"AVERAGE(N22:N33)","v":2.89},{"$f":"MAX(O22:O33)","v":9.1300000000000008}]
[]
[null,null,null,null,null,null,null,null,null,{"$f":"+A5","v":2025},"mg/Nm3","Monthly mean of half-hourly averages","Highest half- hourly average","Monthly mean of  daily averages","Highest daily average"]
[null,null,null,null,null,null,null,null,null,"A3","Jan"]
[null,null,null,null,null,null,null,null,null,null,"Feb"]
[null,null,null,null,null,null,null,null,null,null,"Mar"]
[null,null,null,null,null,null,null,null,null,null,"Apr"]
[null,null,null,null,null,null,null,null,null,null,"May"]
[null,null,null,null,null,null,null,null,null,null,"Jun"]
[null,null,null,null,null,null,null,null,null,null,"Jul"]
[null,null,null,null,null,null,null,null,null,null,"Aug"]
[null,null,null,null,null,null,null,null,null,null,"Sep"]
[null,null,null,null,null,null,null,null,null,null,"Oct"]
[null,null,null,null,null,null,null,null,null,null,"Nov"]
["Comments :",null,null,null,null,null,null,null,null,null,"Dec"]
["An indicated ELV value of zero in the table above means that no ammonia limit is/was set in the permit.  ",null,null,null,null,null,null,null,null,null,"Annual",{"$f":"AVERAGE(L37:L48)","v":{"$error":"#DIV/0!"}},{"$f":"MAX(M37:M48)","v":0},{"$f":"AVERAGE(N37:N48)","v":{"$error":"#DIV/0!"}},{"$f":"MAX(O37:O48)","v":0}]
[]
[null,null,null,null,null,null,null,null,null,{"$f":"+A5","v":2025},"mg/Nm3","Monthly mean of half-hourly averages","Highest half- hourly average","Monthly mean of  daily averages","Highest daily average"]
[null,null,null,null,null,null,null,null,null,"A4","Jan"]
[null,null,null,null,null,null,null,null,null,null,"Feb"]
[null,null,null,null,null,null,null,null,null,null,"Mar"]
[null,null,null,null,null,null,null,null,null,null,"Apr"]
[null,null,null,null,null,null,null,null,null,null,"May"]
[null,null,null,null,null,null,null,null,null,null,"Jun"]
[null,null,null,null,null,null,null,null,null,null,"Jul"]
[null,null,null,null,null,null,null,null,null,null,"Aug"]
[null,null,null,null,null,null,null,null,null,null,"Sep"]
[null,null,null,null,null,null,null,null,null,null,"Oct"]
[null,null,null,null,null,null,null,null,null,null,"Nov"]
[null,null,null,null,null,null,null,null,null,null,"Dec"]
[null,null,null,null,null,null,null,null,null,null,"Annual",{"$f":"AVERAGE(L52:L63)","v":{"$error":"#DIV/0!"}},{"$f":"MAX(M52:M63)","v":0},{"$f":"AVERAGE(N52:N63)","v":{"$error":"#DIV/0!"}},{"$f":"MAX(O52:O63)","v":0}]
[]
[null,null,null,null,null,null,null,null,null,{"$f":"+A5","v":2025},"mg/Nm3","Monthly mean of half-hourly averages","Highest half- hourly average","Monthly mean of  daily averages","Highest daily average"]
[null,null,null,null,null,null,null,null,null,"A5","Jan"]
[null,null,null,null,null,null,null,null,null,null,"Feb"]
[null,null,null,null,null,null,null,null,null,null,"Mar"]
[null,null,null,null,null,null,null,null,null,null,"Apr"]
[null,null,null,null,null,null,null,null,null,null,"May"]
[null,null,null,null,null,null,null,null,null,null,"Jun"]
[null,null,null,null,null,null,null,null,null,null,"Jul"]
[null,null,null,null,null,null,null,null,null,null,"Aug"]
[null,null,null,null,null,null,null,null,null,null,"Sep"]
[null,null,null,null,null,null,null,null,null,null,"Oct"]
[null,null,null,null,null,null,null,null,null,null,"Nov"]
[null,null,null,null,null,null,null,null,null,null,"Dec"]
[null,null,null,null,null,null,null,null,null,null,"Annual",{"$f":"AVERAGE(L67:L78)","v":{"$error":"#DIV/0!"}},{"$f":"MAX(M67:M78)","v":0},{"$f":"AVERAGE(N67:N78)","v":{"$error":"#DIV/0!"}},{"$f":"MAX(O67:O78)","v":0}]

{"sheet":"Template changes log","index":22,"n_rows":23,"n_cols":3,"rows_kept":23,"cut":false,"hidden":false,"merged":[]}
["Log of changes to template (Environment Agency use only)"]
[]
["Date","Description of change","New version number and date"]
["2024-01-16","Air (periodic) tab: corrected default O2 reference from 6 to 11% ","Version 23.5a (for incinerators) - 16/01/2024"]
["2024-09-23","Air (periodic) tab: corrected symbol for Thallium to Tl"]
["2024-09-23","Air (periodic) tab: removed last year's references to different emission limit values applying from 03/12/23 and updated all relevant ELVs"]
["2024-09-23","Tabs for continuously monitored pollutants (HCl, SO2 etc.): changed terminology in table headings to improve clarity"]
["2024-09-23","Tabs for continuously monitored pollutants (HCl, SO2 etc.): removed last year's references to different emission limit values applying from 03/12/23 and updated all relevant ELVs"]
["2024-09-23","Perf 1 tab: updated formula for water usage to report m3 rather than litres and corrected error with formula copying operator name"]
["2024-09-23","Operational Summary tab: table added on start-ups and shut-downs"]
["2024-09-23","Operational Summary tab: table added on dioxins and mercury protocols"]
["2024-09-23","Operational Summary tab: table added on AST, QAL 2 and calibration functions"]
["2024-09-23","CO2 N2O tab: various changes made to notes to reflect the fact that most plants should now have calibrated CEMS and flow meters + some have C14 samplers and more up to date industry data","Version 24a (for incinerators) - 23/09/24"]
["2024-11-08","CO2 N2O tab: Changed the N2O CO2 equivalence factor from 298 to 265 in line with recently updated government greenhouse gas figures: https://www.gov.uk/government/publications/greenhouse-gas-reporting-conversion-factors-2024"]
["2024-11-08","CO2 N2O tab: Added an additional requirement for municipal EfW plants to state the yearly average biogenic percentage of the waste by mass, and reference to a document which sets out a methodology for calculating NCV of waste from the results of C14 sampling."]
["2024-11-08","Permit Compliance tab: Two additional columns added + explanatory notes to the table entitled \"Summary of non-compliances under the permit\" to allow CCS scores to be stated where relevant. "]
["2024-11-08","Residue Quality tab: Note added explaining application of TOC and LOI limits and asking operators to report both metrics where measured. ","Version 24.1a (for incinerators) - 08/11/24"]
["2024-11-27","Operational Summary tab: table added on start-ups and shut-downs","Version 24.2a (for incinerators) - 27/11/24"]
["2025-11-27","Cover Page: Print as PDF and Print Report and pdf buttons deleted and blank columns removed; contents page deleted","Version 25.1a (for incinerators) - 27/11/25"]
["2025-11-27","Residue Quality tab renamed to \"Residues\", and Summary of residue handling table moved from Operational Summary tab to Residues tab."]
["2025-11-27","Various changes made to the Operational Data tab including\n•\tReformatting of the rows under the Operational data heading (Rows 3-8) to make it clearer what information is required. \n•\tAmendment of the rows under the Energy Usage / Export heading (Rows 26-32) to calculate an “indicative parasitic load” (now excluding energy imported)\n•\tAmendment of the unit for gas usage from cubic feet to cubic metres (Row 50) \n•\tSome amendments to the first 2 notes and other minor edits\n•\tDeleted \"Overall Availability, mean avg. of all lines, hrs\" row"]
["2025-11-27","Operational Summary tab: Note added requiring all emergency shut-downs be listed, irrespective of whether or not they were reportable. "]
["2025-11-27","CO2 N2O tab: Note added to ask operators to ensure that relevant data reported here matches that which will be submitted under the Pollution Inventory"]